Body,Body Name,Posted Fiscal Date,Amount,Transaction Number,Supplier Name,Directorate,Service,Activity,Cost Centre Level 5 Name,Subjective Name
http://statistics.data.gov.uk/doc/local-authority-district/00AR,London Borough of Havering,17/04/2015,526.86,APR15L3,Canon (UK) Ltd,"Children, Adults & Housing",Learning & Achievement,Traded Services,Europa Centre,PHOTOCOPYING
http://statistics.data.gov.uk/doc/local-authority-district/00AR,London Borough of Havering,30/04/2015,2300.00,APR15L14,The Rosewood Medical Centre,Public Health,Public Health,PH - NHS Health Check Programme,NHS Health Checks - Mandatory,PRIVATE CONTRACTORS PAYMENT - OTHER
http://statistics.data.gov.uk/doc/local-authority-district/00AR,London Borough of Havering,09/04/2015,900.00,APR15L21,James Oglethorpe Primary School,Community and Resources,Regulatory Services,Development Planning,Travel Plan Project,PRIVATE CONTRACTORS PAYMENT - OTHER
http://statistics.data.gov.uk/doc/local-authority-district/00AR,London Borough of Havering,28/04/2015,4733.60,APR15L30,Central and North West London NHS Foundation Trust,Public Health,Public Health,PH - Sexual Health,SH - STI Testing and Treatment,PRIVATE CONTRACTORS PAYMENT - OTHER
http://statistics.data.gov.uk/doc/local-authority-district/00AR,London Borough of Havering,28/04/2015,3727.15,APR15L31,Central and North West London NHS Foundation Trust,Public Health,Public Health,PH - Sexual Health,SH - STI Testing and Treatment,PRIVATE CONTRACTORS PAYMENT - OTHER
http://statistics.data.gov.uk/doc/local-authority-district/00AR,London Borough of Havering,28/04/2015,3379.92,APR15L32,Central and North West London NHS Foundation Trust,Public Health,Public Health,PH - Sexual Health,SH - STI Testing and Treatment,PRIVATE CONTRACTORS PAYMENT - OTHER
http://statistics.data.gov.uk/doc/local-authority-district/00AR,London Borough of Havering,28/04/2015,2373.47,APR15L33,Central and North West London NHS Foundation Trust,Public Health,Public Health,PH - Sexual Health,SH - STI Testing and Treatment,PRIVATE CONTRACTORS PAYMENT - OTHER
http://statistics.data.gov.uk/doc/local-authority-district/00AR,London Borough of Havering,28/04/2015,2273.92,APR15L34,Central and North West London NHS Foundation Trust,Public Health,Public Health,PH - Sexual Health,SH - STI Testing and Treatment,PRIVATE CONTRACTORS PAYMENT - OTHER
http://statistics.data.gov.uk/doc/local-authority-district/00AR,London Borough of Havering,30/04/2015,660.00,APR15L35,Drs V K & S Uberoy,Public Health,Public Health,PH - NHS Health Check Programme,NHS Health Checks - Mandatory,PRIVATE CONTRACTORS PAYMENT - OTHER
http://statistics.data.gov.uk/doc/local-authority-district/00AR,London Borough of Havering,01/04/2015,11678.26,APR15L46,Wykeham Primary School,"Children, Adults & Housing",Learning & Achievement,Personnel Quality and Assurance,Prim - Early Ret & Sever,STAFF OTHER EXPENSES
http://statistics.data.gov.uk/doc/local-authority-district/00AR,London Borough of Havering,08/04/2015,5649.04,APR15L51,London Borough of Enfield,Community and Resources,Corporate Financial Matters,Corp Fin Transactions,Misc Financial Trans,MEMBERSHIP AND SUBSCRIPTIONS
http://statistics.data.gov.uk/doc/local-authority-district/00AR,London Borough of Havering,15/04/2015,2725.00,APR15L52,Plus Business Systems Ltd,"Children, Adults & Housing",Learning & Achievement,Adult Education,HCAE - Central Office,PRIVATE CONTRACTORS PAYMENT - OTHER
http://statistics.data.gov.uk/doc/local-authority-district/00AR,London Borough of Havering,30/04/2015,950.00,APR15L53,Dr N K Gupta,Public Health,Public Health,PH - NHS Health Check Programme,NHS Health Checks - Mandatory,PRIVATE CONTRACTORS PAYMENT - OTHER
http://statistics.data.gov.uk/doc/local-authority-district/00AR,London Borough of Havering,15/04/2015,22.61,APR15L54,Havering Sixth Form College,Community and Resources,Culture & Leisure,Music Services,Havering Music School,GAS
http://statistics.data.gov.uk/doc/local-authority-district/00AR,London Borough of Havering,15/04/2015,36.61,APR15L55,Havering Sixth Form College,Community and Resources,Culture & Leisure,Music Services,Havering Music School,WATER AND SEWERAGE
http://statistics.data.gov.uk/doc/local-authority-district/00AR,London Borough of Havering,15/04/2015,70.73,APR15L56,Havering Sixth Form College,Community and Resources,Culture & Leisure,Music Services,Havering Music School,ELECTRICITY
http://statistics.data.gov.uk/doc/local-authority-district/00AR,London Borough of Havering,15/04/2015,9322.00,APR15L57,Havering Sixth Form College,Community and Resources,Culture & Leisure,Music Services,Havering Music School,PREMISES HIRE - FACILITIES
http://statistics.data.gov.uk/doc/local-authority-district/00AR,London Borough of Havering,17/04/2015,2997.00,APR15L58,Pitney Bowes Finance Plc,oneSource Shared,oS Asset Management Services,oS Health & Safety,Corp.Support Svs Section,INTERNAL RECHARGES
http://statistics.data.gov.uk/doc/local-authority-district/00AR,London Borough of Havering,17/04/2015,2997.00,APR15L59,Pitney Bowes Finance Plc,oneSource Shared,oS Asset Management Services,oS Health & Safety,Corp.Support Svs Section,INTERNAL RECHARGES
http://statistics.data.gov.uk/doc/local-authority-district/00AR,London Borough of Havering,07/04/2015,3.80,APR15L60,Royal Mail Group Plc,"Children, Adults & Housing",Housing (HRA),Housing Services,Home Ownership Team,INTERNAL RECHARGES
http://statistics.data.gov.uk/doc/local-authority-district/00AR,London Borough of Havering,07/04/2015,7.19,APR15L61,Royal Mail Group Plc,oneSource Shared,oS Exchequer & Transactional Services,oS Council Tax,Revenues - Council Tax,INTERNAL RECHARGES
http://statistics.data.gov.uk/doc/local-authority-district/00AR,London Borough of Havering,07/04/2015,27.85,APR15L62,Royal Mail Group Plc,oneSource Shared,oS Exchequer & Transactional Services,oS Transactional Services,Transactional HR,INTERNAL RECHARGES
http://statistics.data.gov.uk/doc/local-authority-district/00AR,London Borough of Havering,07/04/2015,43.41,APR15L63,Royal Mail Group Plc,oneSource Shared,oS Exchequer & Transactional Services,oS Debt Management & Recovery,Revenues - Enforcement,INTERNAL RECHARGES
http://statistics.data.gov.uk/doc/local-authority-district/00AR,London Borough of Havering,07/04/2015,178.96,APR15L64,Royal Mail Group Plc,oneSource Shared,oS Legal & Governance,oS Democratic & Electoral Services,Electoral Registration,INTERNAL RECHARGES
http://statistics.data.gov.uk/doc/local-authority-district/00AR,London Borough of Havering,07/04/2015,917.75,APR15L65,Royal Mail Group Plc,oneSource Shared,oS Exchequer & Transactional Services,oS Benefits,Benefits Processing,INTERNAL RECHARGES
http://statistics.data.gov.uk/doc/local-authority-district/00AR,London Borough of Havering,07/04/2015,41.64,APR15L66,Royal Mail Group Plc,oneSource Shared,oS Exchequer & Transactional Services,oS Debt Management & Recovery,Revenues - Enforcement,INTERNAL RECHARGES
http://statistics.data.gov.uk/doc/local-authority-district/00AR,London Borough of Havering,07/04/2015,76.05,APR15L67,Royal Mail Group Plc,oneSource Shared,oS Legal & Governance,oS Democratic & Electoral Services,Electoral Registration,INTERNAL RECHARGES
http://statistics.data.gov.uk/doc/local-authority-district/00AR,London Borough of Havering,07/04/2015,98.20,APR15L68,Royal Mail Group Plc,oneSource Shared,oS Exchequer & Transactional Services,oS Transactional Services,Transactional HR,INTERNAL RECHARGES
http://statistics.data.gov.uk/doc/local-authority-district/00AR,London Borough of Havering,07/04/2015,114.85,APR15L69,Royal Mail Group Plc,oneSource Shared,oS Exchequer & Transactional Services,oS Council Tax,Revenues - Council Tax,INTERNAL RECHARGES
http://statistics.data.gov.uk/doc/local-authority-district/00AR,London Borough of Havering,07/04/2015,916.36,APR15L70,Royal Mail Group Plc,oneSource Shared,oS Exchequer & Transactional Services,oS Benefits,Benefits Processing,INTERNAL RECHARGES
http://statistics.data.gov.uk/doc/local-authority-district/00AR,London Borough of Havering,07/04/2015,966.94,APR15L71,Royal Mail Group Plc,"Children, Adults & Housing",Housing (HRA),Housing Services,Home Ownership Team,INTERNAL RECHARGES
http://statistics.data.gov.uk/doc/local-authority-district/00AR,London Borough of Havering,07/04/2015,2.64,APR15L72,Royal Mail Group Plc,"Children, Adults & Housing",Housing (HRA),Housing Services,Home Ownership Team,INTERNAL RECHARGES
http://statistics.data.gov.uk/doc/local-authority-district/00AR,London Borough of Havering,07/04/2015,3.94,APR15L73,Royal Mail Group Plc,oneSource Shared,oS Exchequer & Transactional Services,oS NNDR,Revenues - NNDR,INTERNAL RECHARGES
http://statistics.data.gov.uk/doc/local-authority-district/00AR,London Borough of Havering,07/04/2015,29.19,APR15L74,Royal Mail Group Plc,oneSource Shared,oS Exchequer & Transactional Services,oS Debt Management & Recovery,Revenues - Enforcement,INTERNAL RECHARGES
http://statistics.data.gov.uk/doc/local-authority-district/00AR,London Borough of Havering,07/04/2015,42.77,APR15L75,Royal Mail Group Plc,oneSource Shared,oS Exchequer & Transactional Services,oS Transactional Services,Transactional HR,INTERNAL RECHARGES
http://statistics.data.gov.uk/doc/local-authority-district/00AR,London Borough of Havering,07/04/2015,45.06,APR15L76,Royal Mail Group Plc,oneSource Shared,oS Exchequer & Transactional Services,oS Council Tax,Revenues - Council Tax,INTERNAL RECHARGES
http://statistics.data.gov.uk/doc/local-authority-district/00AR,London Borough of Havering,07/04/2015,165.72,APR15L77,Royal Mail Group Plc,oneSource Shared,oS Legal & Governance,oS Democratic & Electoral Services,Electoral Registration,INTERNAL RECHARGES
http://statistics.data.gov.uk/doc/local-authority-district/00AR,London Borough of Havering,07/04/2015,241.70,APR15L78,Royal Mail Group Plc,oneSource Shared,oS Exchequer & Transactional Services,oS Transactional Services,Transactional Payroll,INTERNAL RECHARGES
http://statistics.data.gov.uk/doc/local-authority-district/00AR,London Borough of Havering,07/04/2015,574.25,APR15L79,Royal Mail Group Plc,oneSource Shared,oS Exchequer & Transactional Services,oS Benefits,Benefits Processing,INTERNAL RECHARGES
http://statistics.data.gov.uk/doc/local-authority-district/00AR,London Borough of Havering,07/04/2015,844.88,APR15L80,Royal Mail Group Plc,oneSource Shared,oS Asset Management Services,oS Health & Safety,Corp.Support Svs Section,INTERNAL RECHARGES
http://statistics.data.gov.uk/doc/local-authority-district/00AR,London Borough of Havering,16/04/2015,2.81,APR15L81,Royal Mail Group Plc,oneSource Shared,oS Exchequer & Transactional Services,oS NNDR,Revenues - NNDR,INTERNAL RECHARGES
http://statistics.data.gov.uk/doc/local-authority-district/00AR,London Borough of Havering,16/04/2015,22.79,APR15L82,Royal Mail Group Plc,Community and Resources,Streetcare,Streetcare Management,Street Care Support Costs,INTERNAL RECHARGES
http://statistics.data.gov.uk/doc/local-authority-district/00AR,London Borough of Havering,16/04/2015,130.49,APR15L83,Royal Mail Group Plc,oneSource Shared,oS Exchequer & Transactional Services,oS Debt Management & Recovery,Revenues - Enforcement,INTERNAL RECHARGES
http://statistics.data.gov.uk/doc/local-authority-district/00AR,London Borough of Havering,16/04/2015,189.38,APR15L84,Royal Mail Group Plc,oneSource Shared,oS Legal & Governance,oS Democratic & Electoral Services,Electoral Registration,INTERNAL RECHARGES
http://statistics.data.gov.uk/doc/local-authority-district/00AR,London Borough of Havering,16/04/2015,216.09,APR15L85,Royal Mail Group Plc,oneSource Shared,oS Exchequer & Transactional Services,oS Council Tax,Revenues - Council Tax,INTERNAL RECHARGES
http://statistics.data.gov.uk/doc/local-authority-district/00AR,London Borough of Havering,16/04/2015,448.80,APR15L86,Royal Mail Group Plc,oneSource Shared,oS Exchequer & Transactional Services,oS Transactional Services,Transactional HR,INTERNAL RECHARGES
http://statistics.data.gov.uk/doc/local-authority-district/00AR,London Borough of Havering,16/04/2015,734.06,APR15L87,Royal Mail Group Plc,oneSource Shared,oS Exchequer & Transactional Services,oS Benefits,Benefits Processing,INTERNAL RECHARGES
http://statistics.data.gov.uk/doc/local-authority-district/00AR,London Borough of Havering,17/04/2015,856.54,APR15L88,Royal Mail Group Plc,oneSource Shared,oS Legal & Governance,oS Democratic & Electoral Services,Electoral Registration,POSTAGE AND COURIER SERVICES
http://statistics.data.gov.uk/doc/local-authority-district/00AR,London Borough of Havering,16/04/2015,0.40,APR15L89,Royal Mail Group Plc,oneSource Shared,oS Exchequer & Transactional Services,oS Transactional Services,Transactional Payroll,INTERNAL RECHARGES
http://statistics.data.gov.uk/doc/local-authority-district/00AR,London Borough of Havering,16/04/2015,37.42,APR15L90,Royal Mail Group Plc,oneSource Shared,oS Legal & Governance,oS Democratic & Electoral Services,Electoral Registration,INTERNAL RECHARGES
http://statistics.data.gov.uk/doc/local-authority-district/00AR,London Borough of Havering,16/04/2015,87.51,APR15L91,Royal Mail Group Plc,oneSource Shared,oS Exchequer & Transactional Services,oS Transactional Services,Transactional HR,INTERNAL RECHARGES
http://statistics.data.gov.uk/doc/local-authority-district/00AR,London Borough of Havering,16/04/2015,96.23,APR15L92,Royal Mail Group Plc,"Children, Adults & Housing",Learning & Achievement,Borough Catering,Catering - Meals on Wheels,INTERNAL RECHARGES
http://statistics.data.gov.uk/doc/local-authority-district/00AR,London Borough of Havering,16/04/2015,250.42,APR15L93,Royal Mail Group Plc,oneSource Shared,oS Exchequer & Transactional Services,oS Council Tax,Revenues - Council Tax,INTERNAL RECHARGES
http://statistics.data.gov.uk/doc/local-authority-district/00AR,London Borough of Havering,16/04/2015,620.00,APR15L94,Royal Mail Group Plc,oneSource Shared,oS Exchequer & Transactional Services,oS Debt Management & Recovery,Revenues - Enforcement,INTERNAL RECHARGES
http://statistics.data.gov.uk/doc/local-authority-district/00AR,London Borough of Havering,16/04/2015,977.58,APR15L95,Royal Mail Group Plc,oneSource Non-Shared LBH,Legal & Democratic Svs,Election Services,Borough Elections,INTERNAL RECHARGES
http://statistics.data.gov.uk/doc/local-authority-district/00AR,London Borough of Havering,24/04/2015,9.29,APR15L96,Royal Mail Group Plc,oneSource Shared,oS Exchequer & Transactional Services,oS NNDR,Revenues - NNDR,INTERNAL RECHARGES
http://statistics.data.gov.uk/doc/local-authority-district/00AR,London Borough of Havering,24/04/2015,40.13,APR15L97,Royal Mail Group Plc,oneSource Shared,oS Exchequer & Transactional Services,oS Debt Management & Recovery,Revenues - Enforcement,INTERNAL RECHARGES
http://statistics.data.gov.uk/doc/local-authority-district/00AR,London Borough of Havering,24/04/2015,41.08,APR15L98,Royal Mail Group Plc,oneSource Shared,oS Exchequer & Transactional Services,oS Transactional Services,Transactional HR,INTERNAL RECHARGES
http://statistics.data.gov.uk/doc/local-authority-district/00AR,London Borough of Havering,24/04/2015,63.60,APR15L99,Royal Mail Group Plc,oneSource Shared,oS Exchequer & Transactional Services,oS Council Tax,Revenues - Council Tax,INTERNAL RECHARGES
http://statistics.data.gov.uk/doc/local-authority-district/00AR,London Borough of Havering,24/04/2015,367.63,APR15L100,Royal Mail Group Plc,oneSource Shared,oS Legal & Governance,oS Democratic & Electoral Services,Electoral Registration,INTERNAL RECHARGES
http://statistics.data.gov.uk/doc/local-authority-district/00AR,London Borough of Havering,24/04/2015,657.54,APR15L101,Royal Mail Group Plc,oneSource Shared,oS Exchequer & Transactional Services,oS Benefits,Benefits Processing,INTERNAL RECHARGES
http://statistics.data.gov.uk/doc/local-authority-district/00AR,London Borough of Havering,30/04/2015,625.00,APR15L104,Drs M & P Feldman,Public Health,Public Health,PH - NHS Health Check Programme,NHS Health Checks - Mandatory,PRIVATE CONTRACTORS PAYMENT - OTHER
http://statistics.data.gov.uk/doc/local-authority-district/00AR,London Borough of Havering,09/04/2015,2080.52,APR15L109,Fostering Network,"Children, Adults & Housing",Childrens Services,"Fostering, Adoption & Other Costs",Fostering Carers Costs,MEMBERSHIP AND SUBSCRIPTIONS
http://statistics.data.gov.uk/doc/local-authority-district/00AR,London Borough of Havering,16/04/2015,5285.39,APR15L110,Zurich Management Services,Community and Resources,Corporate Financial Matters,Ins Trading Account,Self Financing Ins Prem,INSURANCE (EXCL PREMISES AND TRANSPORT)
http://statistics.data.gov.uk/doc/local-authority-district/00AR,London Borough of Havering,07/04/2015,807.57,APR15L111,Zurich Management Services,Community and Resources,Corporate Financial Matters,Ins Trading Account,Ins Trading Account,INSURANCE (EXCL PREMISES AND TRANSPORT)
http://statistics.data.gov.uk/doc/local-authority-district/00AR,London Borough of Havering,17/04/2015,-14835.01,APR15L112,Zurich Management Services,oneSource Shared,oS Finance,"oS Audit, Risk, Insurance & Fraud",Internal Audit,COMMISSION INCOME
http://statistics.data.gov.uk/doc/local-authority-district/00AR,London Borough of Havering,17/04/2015,157251.11,APR15L113,Zurich Management Services,Community and Resources,Corporate Financial Matters,Ins Trading Account,Self Financing Ins Prem,INSURANCE (EXCL PREMISES AND TRANSPORT)
http://statistics.data.gov.uk/doc/local-authority-district/00AR,London Borough of Havering,17/04/2015,2000.00,APR15L114,Harold Court School,Community and Resources,Regulatory Services,Development Planning,Travel Plan Project,PRIVATE CONTRACTORS PAYMENT - OTHER
http://statistics.data.gov.uk/doc/local-authority-district/00AR,London Borough of Havering,28/04/2015,-37854.64,APR15L117,Local Government Association,Community and Resources,Corporate Financial Matters,Corporate Subsc.,MFT - Subscriptions,MEMBERSHIP AND SUBSCRIPTIONS
http://statistics.data.gov.uk/doc/local-authority-district/00AR,London Borough of Havering,27/04/2015,37854.64,APR15L118,Local Government Association,Community and Resources,Corporate Financial Matters,Corporate Subsc.,MFT - Subscriptions,MEMBERSHIP AND SUBSCRIPTIONS
http://statistics.data.gov.uk/doc/local-authority-district/00AR,London Borough of Havering,28/04/2015,37854.64,APR15L119,Local Government Association,Community and Resources,Corporate Financial Matters,Corporate Subsc.,MFT - Subscriptions,MEMBERSHIP AND SUBSCRIPTIONS
http://statistics.data.gov.uk/doc/local-authority-district/00AR,London Borough of Havering,08/04/2015,2283.35,APR15L120,Rainham Village Primary School,"Children, Adults & Housing",Childrens Services,Early Help,Early Help South Locality,CLEANING SERVICES
http://statistics.data.gov.uk/doc/local-authority-district/00AR,London Borough of Havering,08/04/2015,1314.53,APR15L121,Rainham Village Primary School,"Children, Adults & Housing",Childrens Services,Early Help,Early Help South Locality,GAS
http://statistics.data.gov.uk/doc/local-authority-district/00AR,London Borough of Havering,08/04/2015,2021.45,APR15L122,Rainham Village Primary School,"Children, Adults & Housing",Childrens Services,Early Help,Early Help South Locality,ELECTRICITY
http://statistics.data.gov.uk/doc/local-authority-district/00AR,London Borough of Havering,16/04/2015,6500.00,APR15L125,Kings College London,"Children, Adults & Housing",Childrens Services,Prevention & Intervention,Social Work Improvement Team,STAFF DEVELOPMENT AND TRAINING
http://statistics.data.gov.uk/doc/local-authority-district/00AR,London Borough of Havering,11/04/2015,1500.00,APR15L126,LoTSA CIC,Community and Resources,Regulatory Services,Trading Standards,Trading Standards,MEMBERSHIP AND SUBSCRIPTIONS
http://statistics.data.gov.uk/doc/local-authority-district/00AR,London Borough of Havering,17/04/2015,500.00,APR15L129,London Borough of Richmond Upon Thames,Community and Resources,Culture & Leisure,Arts Services,Arts Service,"ADVERTISING, PUBLICITY AND MARKETING"
http://statistics.data.gov.uk/doc/local-authority-district/00AR,London Borough of Havering,02/04/2015,99959.80,APR15L130,Capita Business Services Ltd,"Children, Adults & Housing",Learning & Achievement,Education Finance Support Quality and Assurance,SSR - Education,ICT LICENCES
http://statistics.data.gov.uk/doc/local-authority-district/00AR,London Borough of Havering,01/04/2015,700.00,APR15L131,Capita Business Services Ltd,"Children, Adults & Housing",Learning & Achievement,Schools Provision and Commissioning,Early Years School Provision and Commissioning,STAFF DEVELOPMENT AND TRAINING
http://statistics.data.gov.uk/doc/local-authority-district/00AR,London Borough of Havering,01/04/2015,700.00,APR15L132,Capita Business Services Ltd,"Children, Adults & Housing",Housing (HRA),Head Of Service,Head Of Service - HRA,STAFF DEVELOPMENT AND TRAINING
http://statistics.data.gov.uk/doc/local-authority-district/00AR,London Borough of Havering,16/04/2015,4169.03,APR15L133,CLEAPSS,oneSource Shared,oS Asset Management Services,oS Health & Safety,Schools Health & Safety Assessment Service,MEMBERSHIP AND SUBSCRIPTIONS
http://statistics.data.gov.uk/doc/local-authority-district/00AR,London Borough of Havering,17/04/2015,2000.00,APR15L138,St Patricks Roman Catholic Primary School,Community and Resources,Regulatory Services,Development Planning,Travel Plan Project,PRIVATE CONTRACTORS PAYMENT - OTHER
http://statistics.data.gov.uk/doc/local-authority-district/00AR,London Borough of Havering,08/04/2015,4425.00,APR15L139,Redbridge College,"Children, Adults & Housing",Learning & Achievement,SEN,Post-16 High Needs Top- up DSG,GENERAL CONTINGENCY
http://statistics.data.gov.uk/doc/local-authority-district/00AR,London Borough of Havering,21/04/2015,3914.60,APR15L142,Castacrete Ltd,Community and Resources,Streetcare,Highways Cost Recovery Account,Highways Cost Recovery Account,PRIVATE CONTRACTORS PAYMENT - OTHER
http://statistics.data.gov.uk/doc/local-authority-district/00AR,London Borough of Havering,02/04/2015,3000.00,APR15L143,City of London,"Children, Adults & Housing",Childrens Services,"Fostering, Adoption & Other Costs",Adoption Prescriptions,OTHER CONTRIBUTIONS & REIMBURSEMENTS (INCOME)
http://statistics.data.gov.uk/doc/local-authority-district/00AR,London Borough of Havering,27/04/2015,12424.02,APR15L144,City of London,Community and Resources,Streetcare,Parking Facilities,Onstreet Parking,PAYMENT TO OTHER LOCAL AUTHORITIES
http://statistics.data.gov.uk/doc/local-authority-district/00AR,London Borough of Havering,23/04/2015,64718.00,APR15L145,City of London,Community and Resources,Corporate Financial Matters,Corporate Subsc.,MFT - Subscriptions,MEMBERSHIP AND SUBSCRIPTIONS
http://statistics.data.gov.uk/doc/local-authority-district/00AR,London Borough of Havering,30/04/2015,640.00,APR15L146,Dr R Chowdhury,Public Health,Public Health,PH - NHS Health Check Programme,NHS Health Checks - Mandatory,PRIVATE CONTRACTORS PAYMENT - OTHER
http://statistics.data.gov.uk/doc/local-authority-district/00AR,London Borough of Havering,23/04/2015,1692.70,APR15L147,St Francis Hospice,Community and Resources,Communications,Communications Holding Account,Communications Unit,PRIVATE CONTRACTORS PAYMENT - OTHER
http://statistics.data.gov.uk/doc/local-authority-district/00AR,London Borough of Havering,11/04/2015,220.00,APR15L148,London Borough of Redbridge,"Children, Adults & Housing",Childrens Services,Childrens Social Services Other,Emergency Duty Team - Childrens,PAYMENT TO OTHER LOCAL AUTHORITIES
http://statistics.data.gov.uk/doc/local-authority-district/00AR,London Borough of Havering,21/04/2015,5000.00,APR15L149,London Borough of Redbridge,"Children, Adults & Housing",Childrens Services,Childrens Social Services Other,Emergency Duty Team - Childrens,PAYMENT TO OTHER LOCAL AUTHORITIES
http://statistics.data.gov.uk/doc/local-authority-district/00AR,London Borough of Havering,01/04/2015,4604.77,APR15L150,RM Education Plc,oneSource Shared,oS ICT Services,oS Commercial Services,Educational Computer Centre,ICT SOFTWARE
http://statistics.data.gov.uk/doc/local-authority-district/00AR,London Borough of Havering,09/04/2015,1535.56,APR15L151,RM Education Plc,oneSource Shared,oS ICT Services,oS Commercial Services,Educational Computer Centre,ICT SOFTWARE
http://statistics.data.gov.uk/doc/local-authority-district/00AR,London Borough of Havering,23/04/2015,10447.93,APR15L152,RM Education Plc,oneSource Shared,oS ICT Services,oS Commercial Services,Educational Computer Centre,ICT SOFTWARE
http://statistics.data.gov.uk/doc/local-authority-district/00AR,London Borough of Havering,23/04/2015,13417.00,APR15L153,RM Education Plc,oneSource Shared,oS ICT Services,oS Commercial Services,Educational Computer Centre,PRIVATE CONTRACTORS PAYMENT - OTHER
http://statistics.data.gov.uk/doc/local-authority-district/00AR,London Borough of Havering,20/04/2015,29825.17,APR15L154,RM Education Plc,oneSource Shared,oS ICT Services,oS Commercial Services,Educational Computer Centre,ICT SOFTWARE
http://statistics.data.gov.uk/doc/local-authority-district/00AR,London Borough of Havering,24/04/2015,8500.00,APR15L155,RM Education Plc,oneSource Shared,oS ICT Services,oS Commercial Services,Educational Computer Centre,ICT SOFTWARE
http://statistics.data.gov.uk/doc/local-authority-district/00AR,London Borough of Havering,01/04/2015,1816.00,APR15L156,Shaw & Sons Ltd,oneSource Non-Shared LBH,Legal & Democratic Svs,Election Services,Borough Elections,PRIVATE CONTRACTORS PAYMENT - OTHER
http://statistics.data.gov.uk/doc/local-authority-district/00AR,London Borough of Havering,20/04/2015,638.32,APR15L165,G4S Cash Solutions (UK) Ltd,Community and Resources,Streetcare,Parking Facilities,M Storey Car Pk Dir Costs,PRIVATE CONTRACTORS PAYMENT - OTHER
http://statistics.data.gov.uk/doc/local-authority-district/00AR,London Borough of Havering,20/04/2015,638.32,APR15L166,G4S Cash Solutions (UK) Ltd,Community and Resources,Streetcare,Parking Facilities,M Storey Car Pk Dir Costs,PRIVATE CONTRACTORS PAYMENT - OTHER
http://statistics.data.gov.uk/doc/local-authority-district/00AR,London Borough of Havering,20/04/2015,638.32,APR15L167,G4S Cash Solutions (UK) Ltd,Community and Resources,Streetcare,Parking Facilities,M Storey Car Pk Dir Costs,PRIVATE CONTRACTORS PAYMENT - OTHER
http://statistics.data.gov.uk/doc/local-authority-district/00AR,London Borough of Havering,27/04/2015,695.67,APR15L168,G4S Cash Solutions (UK) Ltd,Community and Resources,Culture & Leisure,Library Service,Libraries Admin,PRIVATE CONTRACTORS PAYMENT - OTHER
http://statistics.data.gov.uk/doc/local-authority-district/00AR,London Borough of Havering,20/04/2015,1062.14,APR15L169,G4S Cash Solutions (UK) Ltd,Community and Resources,Streetcare,Parking Facilities,M Storey Car Pk Dir Costs,PRIVATE CONTRACTORS PAYMENT - OTHER
http://statistics.data.gov.uk/doc/local-authority-district/00AR,London Borough of Havering,20/04/2015,1202.82,APR15L170,G4S Cash Solutions (UK) Ltd,Community and Resources,Streetcare,Parking Facilities,M Storey Car Pk Dir Costs,PRIVATE CONTRACTORS PAYMENT - OTHER
http://statistics.data.gov.uk/doc/local-authority-district/00AR,London Borough of Havering,23/04/2015,87644.90,APR15L171,TfL Surface Transport,Community and Resources,Streetcare,Borough Roads,Bor.Prin.Rds Traf Signals,PRIVATE CONTRACTORS PAYMENT - OTHER
http://statistics.data.gov.uk/doc/local-authority-district/00AR,London Borough of Havering,16/04/2015,1575.00,APR15L174,Interquest Group UK Ltd,"Children, Adults & Housing",Childrens Services,Childrens Social Services Other,Contact Point,CONSULTANCY FEES
http://statistics.data.gov.uk/doc/local-authority-district/00AR,London Borough of Havering,20/04/2015,1575.00,APR15L175,Interquest Group UK Ltd,"Children, Adults & Housing",Childrens Services,Childrens Social Services Other,Contact Point,CONSULTANCY FEES
http://statistics.data.gov.uk/doc/local-authority-district/00AR,London Borough of Havering,20/04/2015,1260.00,APR15L176,Interquest Group UK Ltd,"Children, Adults & Housing",Childrens Services,Childrens Social Services Other,Contact Point,CONSULTANCY FEES
http://statistics.data.gov.uk/doc/local-authority-district/00AR,London Borough of Havering,01/04/2015,680.40,APR15L177,Assessment and Qualifications Alliance (AQA),"Children, Adults & Housing",Learning & Achievement,Adult Education,HCAE - Central Office,EXAM FEES
http://statistics.data.gov.uk/doc/local-authority-district/00AR,London Borough of Havering,30/04/2015,1060.00,APR15L192,Dr G S Saini & Partners,Public Health,Public Health,PH - NHS Health Check Programme,NHS Health Checks - Mandatory,PRIVATE CONTRACTORS PAYMENT - OTHER
http://statistics.data.gov.uk/doc/local-authority-district/00AR,London Borough of Havering,08/04/2015,-12790.00,APR15L193,London Grid for Learning Trust,"Children, Adults & Housing",Learning & Achievement,Schools Provision and Commissioning,Schools Admissions,ICT SOFTWARE
http://statistics.data.gov.uk/doc/local-authority-district/00AR,London Borough of Havering,09/04/2015,12790.00,APR15L194,London Grid for Learning Trust,"Children, Adults & Housing",Learning & Achievement,Schools Provision and Commissioning,Schools Admissions,ICT SOFTWARE
http://statistics.data.gov.uk/doc/local-authority-district/00AR,London Borough of Havering,07/04/2015,12790.00,APR15L195,London Grid for Learning Trust,"Children, Adults & Housing",Learning & Achievement,Schools Provision and Commissioning,Schools Admissions,ICT SOFTWARE
http://statistics.data.gov.uk/doc/local-authority-district/00AR,London Borough of Havering,16/04/2015,1100.00,APR15L196,Disclosure & Barring Service,oneSource Shared,oS Exchequer & Transactional Services,oS Transactional Services,Transactional HR,PRIVATE CONTRACTORS PAYMENT - OTHER
http://statistics.data.gov.uk/doc/local-authority-district/00AR,London Borough of Havering,07/04/2015,15000.00,APR15L203,London Borough of Newham,Community and Resources,Corporate Financial Matters,Corp Fin Transactions,Misc Financial Trans,PRIVATE CONTRACTORS PAYMENT - OTHER
http://statistics.data.gov.uk/doc/local-authority-district/00AR,London Borough of Havering,15/04/2015,1609.00,APR15L204,Hands Free Computing Ltd,"Children, Adults & Housing",Housing (HRA),Head Of Service,Administrative Buildings (HRA),"PURCHASE - EQUIPMENT, FURNITURE AND MATERIALS"
http://statistics.data.gov.uk/doc/local-authority-district/00AR,London Borough of Havering,30/04/2015,960.00,APR15L205,The Robins Surgery,Public Health,Public Health,PH - NHS Health Check Programme,NHS Health Checks - Mandatory,PRIVATE CONTRACTORS PAYMENT - OTHER
http://statistics.data.gov.uk/doc/local-authority-district/00AR,London Borough of Havering,30/04/2015,1060.00,APR15L206,Dr J C F O`Moore,Public Health,Public Health,PH - NHS Health Check Programme,NHS Health Checks - Mandatory,PRIVATE CONTRACTORS PAYMENT - OTHER
http://statistics.data.gov.uk/doc/local-authority-district/00AR,London Borough of Havering,09/04/2015,728.28,APR15L207,Dr I P Humberstone,Community and Resources,Regulatory Services,Crematorium & Cems,Bereavement Customer Services,PRIVATE CONTRACTORS PAYMENT - OTHER
http://statistics.data.gov.uk/doc/local-authority-district/00AR,London Borough of Havering,23/04/2015,569.38,APR15L208,Communisis Transactional Print Services,oneSource Shared,oS Asset Management Services,oS Health & Safety,Corp.Support Svs Section,STATIONERY
http://statistics.data.gov.uk/doc/local-authority-district/00AR,London Borough of Havering,21/04/2015,795.30,APR15L209,**Redacted Personal Data**,Community and Resources,Business & Performance,"Complaints, Information & Communication","Complaints, Information & Communication Team",PRIVATE CONTRACTORS PAYMENT - OTHER
http://statistics.data.gov.uk/doc/local-authority-district/00AR,London Borough of Havering,30/04/2015,555.00,APR15L210,Dr S Subramaniam,Public Health,Public Health,PH - NHS Health Check Programme,NHS Health Checks - Mandatory,PRIVATE CONTRACTORS PAYMENT - OTHER
http://statistics.data.gov.uk/doc/local-authority-district/00AR,London Borough of Havering,30/04/2015,2650.00,APR15L211,Dr P Patel,Public Health,Public Health,PH - NHS Health Check Programme,NHS Health Checks - Mandatory,PRIVATE CONTRACTORS PAYMENT - OTHER
http://statistics.data.gov.uk/doc/local-authority-district/00AR,London Borough of Havering,28/04/2015,1755.75,APR15L212,Trophyland Ltd,Public Health,Public Health,PH - Misc. Public Health Services,Miscellaneous / Other PH Contracts,PRIVATE CONTRACTORS PAYMENT - OTHER
http://statistics.data.gov.uk/doc/local-authority-district/00AR,London Borough of Havering,22/04/2015,600.00,APR15L213,James Blewett Training & Consultancy Ltd,"Children, Adults & Housing",Childrens Services,Prevention & Intervention,Social Work Improvement Team,STAFF DEVELOPMENT AND TRAINING
http://statistics.data.gov.uk/doc/local-authority-district/00AR,London Borough of Havering,20/04/2015,3534.96,APR15L214,G4S Fire & Security Systems (UK),oneSource Non-Shared LBH,Asset Management,Premises Management,Corporate Landlord-LBH,CYCLICAL/PLANNED MAINTENANCE - BUILDING
http://statistics.data.gov.uk/doc/local-authority-district/00AR,London Borough of Havering,20/04/2015,542.40,APR15L215,G4S Fire & Security Systems (UK),oneSource Non-Shared LBH,Asset Management,Premises Management,Corporate Landlord-LBH,CYCLICAL/PLANNED MAINTENANCE - BUILDING
http://statistics.data.gov.uk/doc/local-authority-district/00AR,London Borough of Havering,22/04/2015,2500.00,APR15L216,Family Futures CIC,"Children, Adults & Housing",Childrens Services,Prevention & Intervention,Social Work Improvement Team,STAFF DEVELOPMENT AND TRAINING
http://statistics.data.gov.uk/doc/local-authority-district/00AR,London Borough of Havering,30/04/2015,660.00,APR15L217,Dr K A Subramanium,Public Health,Public Health,PH - NHS Health Check Programme,NHS Health Checks - Mandatory,PRIVATE CONTRACTORS PAYMENT - OTHER
http://statistics.data.gov.uk/doc/local-authority-district/00AR,London Borough of Havering,30/04/2015,1635.00,APR15L218,"Drs Zachariah, Lee, Acheson & Sinha",Public Health,Public Health,PH - NHS Health Check Programme,NHS Health Checks - Mandatory,PRIVATE CONTRACTORS PAYMENT - OTHER
http://statistics.data.gov.uk/doc/local-authority-district/00AR,London Borough of Havering,27/04/2015,750.00,APR15L219,Tribal Education Ltd,"Children, Adults & Housing",Learning & Achievement,HIAS Development Leadership Quality and Assurance,Early Years Quality and Assurance Team - CORE,PRIVATE CONTRACTORS PAYMENT - OTHER
http://statistics.data.gov.uk/doc/local-authority-district/00AR,London Borough of Havering,30/04/2015,1065.00,APR15L220,Dr Kulendran & Associates,Public Health,Public Health,PH - NHS Health Check Programme,NHS Health Checks - Mandatory,PRIVATE CONTRACTORS PAYMENT - OTHER
http://statistics.data.gov.uk/doc/local-authority-district/00AR,London Borough of Havering,15/04/2015,564.00,APR15L221,Orchid Cellmark Ltd,"Children, Adults & Housing",Childrens Services,Prevention & Intervention,Legal Costs - Children'S Social Care,LEGAL FEES
http://statistics.data.gov.uk/doc/local-authority-district/00AR,London Borough of Havering,16/04/2015,6292.00,APR15L222,Thomson Reuters (Professional) UK Ltd,oneSource Shared,oS Legal & Governance,oS Legal,Legal Services,"BOOKS, PUBLICATIONS AND RESOURCES"
http://statistics.data.gov.uk/doc/local-authority-district/00AR,London Borough of Havering,02/04/2015,1000.00,APR15L223,Allpay Ltd,"Children, Adults & Housing",Housing (HRA),Community Support Services,Rents (HRA),PRIVATE CONTRACTORS PAYMENT - OTHER
http://statistics.data.gov.uk/doc/local-authority-district/00AR,London Borough of Havering,11/04/2015,6091.17,APR15L224,Allpay Ltd,"Children, Adults & Housing",Housing (HRA),Community Support Services,Rents (HRA),PRIVATE CONTRACTORS PAYMENT - OTHER
http://statistics.data.gov.uk/doc/local-authority-district/00AR,London Borough of Havering,07/04/2015,20572.00,APR15L225,Learning Nexus Ltd,oneSource Non-Shared LBH,Asset Management,Corp Safety & Facilities,Health & Safety Provision,GROUNDS MAINTENANCE
http://statistics.data.gov.uk/doc/local-authority-district/00AR,London Borough of Havering,08/04/2015,20331.15,APR15L226,Newbridge School,"Children, Adults & Housing",Learning & Achievement,SEN,Special Support,PRIVATE CONTRACTORS PAYMENT - OTHER
http://statistics.data.gov.uk/doc/local-authority-district/00AR,London Borough of Havering,30/04/2015,690.00,APR15L227,Avon Road Surgery,Public Health,Public Health,PH - NHS Health Check Programme,NHS Health Checks - Mandatory,PRIVATE CONTRACTORS PAYMENT - OTHER
http://statistics.data.gov.uk/doc/local-authority-district/00AR,London Borough of Havering,16/04/2015,1071.00,APR15L228,GB Group Plc,oneSource Shared,oS Exchequer & Transactional Services,oS Transactional Services,Transactional HR,PRIVATE CONTRACTORS PAYMENT - OTHER
http://statistics.data.gov.uk/doc/local-authority-district/00AR,London Borough of Havering,16/04/2015,1530.00,APR15L229,GB Group Plc,"Children, Adults & Housing",Childrens Services,Childrens Social Services Other,Sen Staff-Children & Fami,STAFF OTHER EXPENSES
http://statistics.data.gov.uk/doc/local-authority-district/00AR,London Borough of Havering,30/04/2015,1125.00,APR15L230,Dr D Bass & Partners,Public Health,Public Health,PH - NHS Health Check Programme,NHS Health Checks - Mandatory,PRIVATE CONTRACTORS PAYMENT - OTHER
http://statistics.data.gov.uk/doc/local-authority-district/00AR,London Borough of Havering,08/04/2015,1556.96,APR15L231,London Borough of Sutton,oneSource Shared,oS Strategic & Operational HR,oS Strategic & Operational HR,People & Change,SALARIES
http://statistics.data.gov.uk/doc/local-authority-district/00AR,London Borough of Havering,02/04/2015,1849.04,APR15L232,Cedars Care Home for the Elderly_a,"Children, Adults & Housing",Adult Services,Adult Community Team,Physical Support,RESIDENTIAL PLACEMENTS - PRIVATE CONTRACTORS PAYMENT
http://statistics.data.gov.uk/doc/local-authority-district/00AR,London Borough of Havering,16/04/2015,7092.72,APR15L233,Yaboo Company Ltd,Community and Resources,Regulatory Services,Crematorium & Cems,South Essex Crematorium,BEREAVEMENT SERVICES EQUIPMENT
http://statistics.data.gov.uk/doc/local-authority-district/00AR,London Borough of Havering,16/04/2015,3546.88,APR15L234,Yaboo Company Ltd,Community and Resources,Regulatory Services,Crematorium & Cems,South Essex Crematorium,BEREAVEMENT SERVICES EQUIPMENT
http://statistics.data.gov.uk/doc/local-authority-district/00AR,London Borough of Havering,16/04/2015,3546.88,APR15L235,Yaboo Company Ltd,Community and Resources,Regulatory Services,Crematorium & Cems,South Essex Crematorium,BEREAVEMENT SERVICES EQUIPMENT
http://statistics.data.gov.uk/doc/local-authority-district/00AR,London Borough of Havering,20/04/2015,590.90,APR15L236,British Gas Trading Ltd,"Children, Adults & Housing",Housing Services,Strategy,Private Housing Solutions Team,PRIVATE CONTRACTORS PAYMENT - OTHER
http://statistics.data.gov.uk/doc/local-authority-district/00AR,London Borough of Havering,14/04/2015,620.82,APR15L237,British Gas Trading Ltd t/as British Gas Business,"Children, Adults & Housing",Mental Health,Mental Health - Non Section 75,79 Maybank Avenue,GAS
http://statistics.data.gov.uk/doc/local-authority-district/00AR,London Borough of Havering,24/04/2015,663.64,APR15L238,British Gas Trading Ltd t/as British Gas Business,"Children, Adults & Housing",Housing (HRA),Maintenance,Estate Contracts,ELECTRICITY
http://statistics.data.gov.uk/doc/local-authority-district/00AR,London Borough of Havering,20/04/2015,795.50,APR15L239,Parkeon Ltd,Community and Resources,Streetcare,Parking Facilities,M Storey Car Pk Dir Costs,PRIVATE CONTRACTORS PAYMENT - OTHER
http://statistics.data.gov.uk/doc/local-authority-district/00AR,London Borough of Havering,07/04/2015,1052.52,APR15L240,Chipside Ltd,Community and Resources,Streetcare,Parking Facilities,Onstreet Parking,PRIVATE CONTRACTORS PAYMENT - OTHER
http://statistics.data.gov.uk/doc/local-authority-district/00AR,London Borough of Havering,09/04/2015,2577.00,APR15L241,Pace Fuelcare Ltd,Community and Resources,Culture & Leisure,Youth Facilitation,Youth Facilitation - T3 - Based around Rainham,LIQUID FUEL
http://statistics.data.gov.uk/doc/local-authority-district/00AR,London Borough of Havering,15/04/2015,1071.60,APR15L242,Early Excellence Ltd,"Children, Adults & Housing",Learning & Achievement,HIAS Development Leadership Quality and Assurance,Early Years Quality and Assurance Team - CORE,STAFF DEVELOPMENT AND TRAINING
http://statistics.data.gov.uk/doc/local-authority-district/00AR,London Borough of Havering,11/04/2015,1200.00,APR15L243,Northgate Information Solutions UK Ltd,Community and Resources,Business & Performance,Performance and Policy,Technical Development & Support,ICT SOFTWARE
http://statistics.data.gov.uk/doc/local-authority-district/00AR,London Borough of Havering,07/04/2015,14040.00,APR15L244,Northgate Information Solutions UK Ltd,Community and Resources,Corporate Financial Matters,Corp Fin Transactions,Corporate Expenses,BANK CHARGES
http://statistics.data.gov.uk/doc/local-authority-district/00AR,London Borough of Havering,27/04/2015,17101.65,APR15L245,Northgate Information Solutions UK Ltd,"Children, Adults & Housing",Adult Services,Health & Social Care Other,Health & Social Care-Hos,ICT SOFTWARE
http://statistics.data.gov.uk/doc/local-authority-district/00AR,London Borough of Havering,27/04/2015,22005.81,APR15L246,Northgate Information Solutions UK Ltd,"Children, Adults & Housing",Childrens Services,Childrens Social Services Other,Sen Staff-Children & Fami,PRIVATE CONTRACTORS PAYMENT - OTHER
http://statistics.data.gov.uk/doc/local-authority-district/00AR,London Borough of Havering,27/04/2015,82169.71,APR15L247,Northgate Information Solutions UK Ltd,oneSource Shared,oS ICT Services,oS Application and Development,Applications Management,ICT SOFTWARE
http://statistics.data.gov.uk/doc/local-authority-district/00AR,London Borough of Havering,11/04/2015,39592.93,APR15L248,Northgate Information Solutions UK Ltd,"Children, Adults & Housing",Housing (HRA),Head Of Service,Head Of Service - HRA,ICT SOFTWARE
http://statistics.data.gov.uk/doc/local-authority-district/00AR,London Borough of Havering,01/04/2015,750.00,APR15L249,Northgate Information Solutions UK Ltd,Community and Resources,Transformation Agenda,Customer Services Transformation,CRM Joint Development Programme,PRIVATE CONTRACTORS PAYMENT - OTHER
http://statistics.data.gov.uk/doc/local-authority-district/00AR,London Borough of Havering,11/04/2015,2550.00,APR15L250,Northgate Information Solutions UK Ltd,oneSource Shared,oS ICT Services,oS Application and Development,Applications Management,CONSULTANCY FEES
http://statistics.data.gov.uk/doc/local-authority-district/00AR,London Borough of Havering,23/04/2015,1063.00,APR15L251,Northgate Information Solutions UK Ltd,Community and Resources,Business & Performance,Performance and Policy,Childrens Performance & Systems,ICT LICENCES
http://statistics.data.gov.uk/doc/local-authority-district/00AR,London Borough of Havering,23/04/2015,9648.00,APR15L252,Northgate Information Solutions UK Ltd,"Children, Adults & Housing",Adult Services,Strategy and Commissioning,NHS Support for Social Care,INTERNET COSTS
http://statistics.data.gov.uk/doc/local-authority-district/00AR,London Borough of Havering,23/04/2015,4250.00,APR15L253,Northgate Information Solutions UK Ltd,Community and Resources,Business & Performance,Performance and Policy,Childrens Performance & Systems,ICT LICENCES
http://statistics.data.gov.uk/doc/local-authority-district/00AR,London Borough of Havering,23/04/2015,45565.00,APR15L254,Northgate Information Solutions UK Ltd,"Children, Adults & Housing",Adult Services,Strategy and Commissioning,NHS Support for Social Care,INTERNET COSTS
http://statistics.data.gov.uk/doc/local-authority-district/00AR,London Borough of Havering,30/04/2015,1784.80,APR15L255,Northgate Information Solutions UK Ltd,Community and Resources,Corporate & Customer Transformation,CRM,Blue Badge Scheme,PRIVATE CONTRACTORS PAYMENT - OTHER
http://statistics.data.gov.uk/doc/local-authority-district/00AR,London Borough of Havering,30/04/2015,1005.00,APR15L256,Hornchurch Healthcare,Public Health,Public Health,PH - NHS Health Check Programme,NHS Health Checks - Mandatory,PRIVATE CONTRACTORS PAYMENT - OTHER
http://statistics.data.gov.uk/doc/local-authority-district/00AR,London Borough of Havering,11/04/2015,80208.14,APR15L257,Acorn Care & Education Ltd,"Children, Adults & Housing",Learning & Achievement,SEN,Residential Post Budget,PRIVATE CONTRACTORS PAYMENT - OTHER
http://statistics.data.gov.uk/doc/local-authority-district/00AR,London Borough of Havering,11/04/2015,11144.05,APR15L258,Acorn Care & Education Ltd,"Children, Adults & Housing",Learning & Achievement,SEN,Residential School Budget,PRIVATE CONTRACTORS PAYMENT - OTHER
http://statistics.data.gov.uk/doc/local-authority-district/00AR,London Borough of Havering,01/04/2015,1516.00,APR15L259,Meritec Ltd,oneSource Shared,oS Finance,"oS Audit, Risk, Insurance & Fraud",Internal Audit,MEMBERSHIP AND SUBSCRIPTIONS
http://statistics.data.gov.uk/doc/local-authority-district/00AR,London Borough of Havering,21/04/2015,3515.00,APR15L260,Post Office Ltd (Vehicle Licence Renewals),oneSource Non-Shared LBH,Asset Management,Transport Accounts,Vehicle & Plant,VEHICLE LICENSING
http://statistics.data.gov.uk/doc/local-authority-district/00AR,London Borough of Havering,08/04/2015,1359.00,APR15L261,Albany School Academy,"Children, Adults & Housing",Learning & Achievement,SEN,Primary Support,GENERAL CONTINGENCY
http://statistics.data.gov.uk/doc/local-authority-district/00AR,London Borough of Havering,08/04/2015,1772.00,APR15L262,The Campion School Academy,"Children, Adults & Housing",Learning & Achievement,SEN,Primary Support,GENERAL CONTINGENCY
http://statistics.data.gov.uk/doc/local-authority-district/00AR,London Borough of Havering,08/04/2015,1377.00,APR15L263,Sacred Heart of Mary Girls School Academy,"Children, Adults & Housing",Learning & Achievement,SEN,Primary Support,GENERAL CONTINGENCY
http://statistics.data.gov.uk/doc/local-authority-district/00AR,London Borough of Havering,29/04/2015,1189.14,APR15L264,Virgin Media Payments Ltd,"Children, Adults & Housing",Childrens Services,Children's Centres,Rainham Village Children'S Centre,ICT SOFTWARE
http://statistics.data.gov.uk/doc/local-authority-district/00AR,London Borough of Havering,29/04/2015,2866.27,APR15L265,Virgin Media Payments Ltd,"Children, Adults & Housing",Childrens Services,Children's Centres,Ingrebourne Childrens Centre,ICT SOFTWARE
http://statistics.data.gov.uk/doc/local-authority-district/00AR,London Borough of Havering,29/04/2015,3874.74,APR15L266,Virgin Media Payments Ltd,"Children, Adults & Housing",Childrens Services,Children's Centres,Collier Row Children's Centre,ICT SOFTWARE
http://statistics.data.gov.uk/doc/local-authority-district/00AR,London Borough of Havering,29/04/2015,3874.74,APR15L267,Virgin Media Payments Ltd,"Children, Adults & Housing",Childrens Services,Children's Centres,St Kilda Childrens' Centre,ICT SOFTWARE
http://statistics.data.gov.uk/doc/local-authority-district/00AR,London Borough of Havering,29/04/2015,25063.70,APR15L268,Virgin Media Payments Ltd,oneSource Shared,oS ICT Services,oS Support Centre,ICT Procurement,PRIVATE CONTRACTORS PAYMENT - OTHER
http://statistics.data.gov.uk/doc/local-authority-district/00AR,London Borough of Havering,29/04/2015,-25063.70,APR15L269,Virgin Media Payments Ltd,oneSource Shared,oS ICT Services,oS Support Centre,ICT Procurement,RECHARGES - TRADING UNDERTAKINGS
http://statistics.data.gov.uk/doc/local-authority-district/00AR,London Borough of Havering,29/04/2015,2880.00,APR15L270,Virgin Media Payments Ltd,Community and Resources,Streetcare,Street Cleansing,Street Cleansing Depots,RESPONSIVE REPAIRS - BUILDING
http://statistics.data.gov.uk/doc/local-authority-district/00AR,London Borough of Havering,29/04/2015,5083.15,APR15L271,Virgin Media Payments Ltd,"Children, Adults & Housing",Childrens Services,Children's Centres,Elm Park Childrens' Centre,ICT SOFTWARE
http://statistics.data.gov.uk/doc/local-authority-district/00AR,London Borough of Havering,24/04/2015,8943.52,APR15L272,Virgin Media Payments Ltd,oneSource Shared,oS ICT Services,oS Support Centre,ICT Procurement,PRIVATE CONTRACTORS PAYMENT - OTHER
http://statistics.data.gov.uk/doc/local-authority-district/00AR,London Borough of Havering,07/04/2015,993.00,APR15L273,A V Parts Master Ltd t/a AV Partsmaster,oneSource Shared,oS ICT Services,oS Commercial Services,Educational Computer Centre,PRIVATE CONTRACTORS PAYMENT - OTHER
http://statistics.data.gov.uk/doc/local-authority-district/00AR,London Borough of Havering,09/04/2015,3150.00,APR15L274,National Development Team for Inclusion,"Children, Adults & Housing",Adult Services,Learning Disabilities,LD Partnership Board,PRIVATE CONTRACTORS PAYMENT - OTHER
http://statistics.data.gov.uk/doc/local-authority-district/00AR,London Borough of Havering,10/04/2015,1600.00,APR15L275,Parasol Ltd,"Children, Adults & Housing",Adult Services,Strategy and Commissioning,Care Act Programme,CONSULTANCY FEES
http://statistics.data.gov.uk/doc/local-authority-district/00AR,London Borough of Havering,10/04/2015,800.00,APR15L276,Parasol Ltd,"Children, Adults & Housing",Adult Services,Strategy and Commissioning,Care Act Programme,CONSULTANCY FEES
http://statistics.data.gov.uk/doc/local-authority-district/00AR,London Borough of Havering,28/04/2015,1800.00,APR15L277,Parasol Ltd,"Children, Adults & Housing",Adult Services,Strategy and Commissioning,Care Act Programme,CONSULTANCY FEES
http://statistics.data.gov.uk/doc/local-authority-district/00AR,London Borough of Havering,01/04/2015,575.00,APR15L278,The Office of Immigration Services Commissioner,Community and Resources,Regulatory Services,Births Deaths & Mrgs,Registration Service,PRIVATE CONTRACTORS PAYMENT - OTHER
http://statistics.data.gov.uk/doc/local-authority-district/00AR,London Borough of Havering,08/04/2015,3525.00,APR15L279,Drapers Academy,"Children, Adults & Housing",Learning & Achievement,SEN,Primary Support,GENERAL CONTINGENCY
http://statistics.data.gov.uk/doc/local-authority-district/00AR,London Borough of Havering,01/04/2015,12075.00,APR15L280,Centre Academy East Anglia,"Children, Adults & Housing",Learning & Achievement,SEN,Residential Post Budget,PRIVATE CONTRACTORS PAYMENT - OTHER
http://statistics.data.gov.uk/doc/local-authority-district/00AR,London Borough of Havering,08/04/2015,10153.00,APR15L281,Epping Forest College,"Children, Adults & Housing",Learning & Achievement,SEN,Post-16 High Needs Top- up DSG,GENERAL CONTINGENCY
http://statistics.data.gov.uk/doc/local-authority-district/00AR,London Borough of Havering,14/04/2015,1990.00,APR15L282,The Chartered Institute of Payroll Professionals (CIPP),oneSource Shared,oS Exchequer & Transactional Services,oS Transactional Services,Transactional Payroll,STAFF DEVELOPMENT AND TRAINING
http://statistics.data.gov.uk/doc/local-authority-district/00AR,London Borough of Havering,07/04/2015,2000.00,APR15L283,Citibank Europe Plc,"Children, Adults & Housing",Adult Services,Prevention,PD Equipment,"PURCHASE - EQUIPMENT, FURNITURE AND MATERIALS"
http://statistics.data.gov.uk/doc/local-authority-district/00AR,London Borough of Havering,16/04/2015,434.00,APR15L284,Citibank Europe Plc,"Children, Adults & Housing",Adult Services,Adult Community Team,Sensory Support,DIRECT PAYMENTS
http://statistics.data.gov.uk/doc/local-authority-district/00AR,London Borough of Havering,16/04/2015,1114.00,APR15L285,Citibank Europe Plc,"Children, Adults & Housing",Learning & Achievement,Children With Disabilities,C&F Direct Payments,DIRECT PAYMENTS
http://statistics.data.gov.uk/doc/local-authority-district/00AR,London Borough of Havering,16/04/2015,3606.00,APR15L286,Citibank Europe Plc,"Children, Adults & Housing",Adult Services,Learning Disabilities,Learning Disability Support,DIRECT PAYMENTS
http://statistics.data.gov.uk/doc/local-authority-district/00AR,London Borough of Havering,16/04/2015,6194.00,APR15L287,Citibank Europe Plc,"Children, Adults & Housing",Adult Services,Adult Community Team,Physical Support,DIRECT PAYMENTS
http://statistics.data.gov.uk/doc/local-authority-district/00AR,London Borough of Havering,08/04/2015,7215.00,APR15L288,Abbs Cross Academy & Arts College,"Children, Adults & Housing",Learning & Achievement,SEN,Primary Support,GENERAL CONTINGENCY
http://statistics.data.gov.uk/doc/local-authority-district/00AR,London Borough of Havering,08/04/2015,3327.00,APR15L289,Brittons Academy Trust,"Children, Adults & Housing",Learning & Achievement,SEN,Primary Support,GENERAL CONTINGENCY
http://statistics.data.gov.uk/doc/local-authority-district/00AR,London Borough of Havering,09/04/2015,2000.00,APR15L290,The Coopers Company and Coborn School Academy,Community and Resources,Regulatory Services,Development Planning,Travel Plan Project,PRIVATE CONTRACTORS PAYMENT - OTHER
http://statistics.data.gov.uk/doc/local-authority-district/00AR,London Borough of Havering,08/04/2015,2479.00,APR15L291,The Coopers Company and Coborn School Academy,"Children, Adults & Housing",Learning & Achievement,SEN,Primary Support,GENERAL CONTINGENCY
http://statistics.data.gov.uk/doc/local-authority-district/00AR,London Borough of Havering,08/04/2015,4500.00,APR15L292,Eversheds LLP,Community and Resources,Policy & Community Manager,Corporate Policy and Community,Diversity Programme Team,CONSULTANCY FEES
http://statistics.data.gov.uk/doc/local-authority-district/00AR,London Borough of Havering,07/04/2015,1220.00,APR15L293,Witham Forge,"Children, Adults & Housing",Adult Services,Prevention,Royal Jubilee Court,"PURCHASE - EQUIPMENT, FURNITURE AND MATERIALS"
http://statistics.data.gov.uk/doc/local-authority-district/00AR,London Borough of Havering,09/04/2015,6805.09,APR15L294,Moor House School & College,"Children, Adults & Housing",Learning & Achievement,SEN,Residential School Budget,PRIVATE CONTRACTORS PAYMENT - OTHER
http://statistics.data.gov.uk/doc/local-authority-district/00AR,London Borough of Havering,27/04/2015,48.21,APR15L295,Brake Bros Ltd,"Children, Adults & Housing",Learning & Achievement,Borough Catering,Catering - Sanders Draper,CATERING AND VENDING SUPPLIES
http://statistics.data.gov.uk/doc/local-authority-district/00AR,London Borough of Havering,27/04/2015,86.05,APR15L296,Brake Bros Ltd,"Children, Adults & Housing",Learning & Achievement,Borough Catering,Catering - Upminster,CATERING AND VENDING SUPPLIES
http://statistics.data.gov.uk/doc/local-authority-district/00AR,London Borough of Havering,27/04/2015,87.00,APR15L297,Brake Bros Ltd,"Children, Adults & Housing",Learning & Achievement,Borough Catering,Catering - Specials - Ravensbourne,CATERING AND VENDING SUPPLIES
http://statistics.data.gov.uk/doc/local-authority-district/00AR,London Borough of Havering,27/04/2015,147.36,APR15L298,Brake Bros Ltd,"Children, Adults & Housing",Learning & Achievement,Borough Catering,Catering - St Bede's Catholic Primary School,CATERING AND VENDING SUPPLIES
http://statistics.data.gov.uk/doc/local-authority-district/00AR,London Borough of Havering,27/04/2015,157.86,APR15L299,Brake Bros Ltd,"Children, Adults & Housing",Learning & Achievement,Borough Catering,Catering - St Ursulas,CATERING AND VENDING SUPPLIES
http://statistics.data.gov.uk/doc/local-authority-district/00AR,London Borough of Havering,27/04/2015,167.80,APR15L300,Brake Bros Ltd,"Children, Adults & Housing",Learning & Achievement,Borough Catering,Catering - St Marys,CATERING AND VENDING SUPPLIES
http://statistics.data.gov.uk/doc/local-authority-district/00AR,London Borough of Havering,27/04/2015,170.79,APR15L301,Brake Bros Ltd,"Children, Adults & Housing",Learning & Achievement,Borough Catering,Catering - Brookside,CATERING AND VENDING SUPPLIES
http://statistics.data.gov.uk/doc/local-authority-district/00AR,London Borough of Havering,27/04/2015,189.04,APR15L302,Brake Bros Ltd,"Children, Adults & Housing",Learning & Achievement,Borough Catering,Catering - Harold Court,CATERING AND VENDING SUPPLIES
http://statistics.data.gov.uk/doc/local-authority-district/00AR,London Borough of Havering,27/04/2015,219.88,APR15L303,Brake Bros Ltd,"Children, Adults & Housing",Learning & Achievement,Borough Catering,Catering - Harold Wood,CATERING AND VENDING SUPPLIES
http://statistics.data.gov.uk/doc/local-authority-district/00AR,London Borough of Havering,27/04/2015,249.33,APR15L304,Brake Bros Ltd,"Children, Adults & Housing",Learning & Achievement,Borough Catering,Catering - Broadford,CATERING AND VENDING SUPPLIES
http://statistics.data.gov.uk/doc/local-authority-district/00AR,London Borough of Havering,27/04/2015,273.30,APR15L305,Brake Bros Ltd,"Children, Adults & Housing",Learning & Achievement,Borough Catering,Catering - Scargill,CATERING AND VENDING SUPPLIES
http://statistics.data.gov.uk/doc/local-authority-district/00AR,London Borough of Havering,27/04/2015,275.71,APR15L306,Brake Bros Ltd,"Children, Adults & Housing",Learning & Achievement,Borough Catering,Catering - Mead,CATERING AND VENDING SUPPLIES
http://statistics.data.gov.uk/doc/local-authority-district/00AR,London Borough of Havering,27/04/2015,305.39,APR15L307,Brake Bros Ltd,"Children, Adults & Housing",Learning & Achievement,Borough Catering,Catering - Mawney,CATERING AND VENDING SUPPLIES
http://statistics.data.gov.uk/doc/local-authority-district/00AR,London Borough of Havering,27/04/2015,358.93,APR15L308,Brake Bros Ltd,"Children, Adults & Housing",Learning & Achievement,Borough Catering,Catering - St Patricks,CATERING AND VENDING SUPPLIES
http://statistics.data.gov.uk/doc/local-authority-district/00AR,London Borough of Havering,27/04/2015,377.75,APR15L309,Brake Bros Ltd,"Children, Adults & Housing",Learning & Achievement,Borough Catering,Catering - Whybridge,CATERING AND VENDING SUPPLIES
http://statistics.data.gov.uk/doc/local-authority-district/00AR,London Borough of Havering,27/04/2015,448.85,APR15L310,Brake Bros Ltd,"Children, Adults & Housing",Learning & Achievement,Borough Catering,Catering - Hilldene,CATERING AND VENDING SUPPLIES
http://statistics.data.gov.uk/doc/local-authority-district/00AR,London Borough of Havering,27/04/2015,94.00,APR15L311,Thomas Ridley & Sons Ltd,"Children, Adults & Housing",Learning & Achievement,Borough Catering,Catering - Hospitality Plus,CATERING AND VENDING SUPPLIES
http://statistics.data.gov.uk/doc/local-authority-district/00AR,London Borough of Havering,27/04/2015,118.18,APR15L312,Thomas Ridley & Sons Ltd,"Children, Adults & Housing",Learning & Achievement,Borough Catering,Catering - Specials - Ravensbourne,CATERING AND VENDING SUPPLIES
http://statistics.data.gov.uk/doc/local-authority-district/00AR,London Borough of Havering,27/04/2015,212.10,APR15L313,Thomas Ridley & Sons Ltd,"Children, Adults & Housing",Learning & Achievement,Borough Catering,Catering - St Josephs,CATERING AND VENDING SUPPLIES
http://statistics.data.gov.uk/doc/local-authority-district/00AR,London Borough of Havering,27/04/2015,293.79,APR15L314,Thomas Ridley & Sons Ltd,"Children, Adults & Housing",Learning & Achievement,Borough Catering,Catering - Specials - Corbets Tey,CATERING AND VENDING SUPPLIES
http://statistics.data.gov.uk/doc/local-authority-district/00AR,London Borough of Havering,27/04/2015,306.18,APR15L315,Thomas Ridley & Sons Ltd,"Children, Adults & Housing",Learning & Achievement,Borough Catering,Catering - Dame Tipping,CATERING AND VENDING SUPPLIES
http://statistics.data.gov.uk/doc/local-authority-district/00AR,London Borough of Havering,27/04/2015,321.09,APR15L316,Thomas Ridley & Sons Ltd,"Children, Adults & Housing",Learning & Achievement,Borough Catering,Catering - Suttons,CATERING AND VENDING SUPPLIES
http://statistics.data.gov.uk/doc/local-authority-district/00AR,London Borough of Havering,27/04/2015,331.74,APR15L317,Thomas Ridley & Sons Ltd,"Children, Adults & Housing",Learning & Achievement,Borough Catering,Catering - R J Mitchell,CATERING AND VENDING SUPPLIES
http://statistics.data.gov.uk/doc/local-authority-district/00AR,London Borough of Havering,27/04/2015,377.90,APR15L318,Thomas Ridley & Sons Ltd,"Children, Adults & Housing",Learning & Achievement,Borough Catering,Catering - La Salette,CATERING AND VENDING SUPPLIES
http://statistics.data.gov.uk/doc/local-authority-district/00AR,London Borough of Havering,27/04/2015,400.88,APR15L319,Thomas Ridley & Sons Ltd,"Children, Adults & Housing",Learning & Achievement,Borough Catering,Catering - Scotts,CATERING AND VENDING SUPPLIES
http://statistics.data.gov.uk/doc/local-authority-district/00AR,London Borough of Havering,27/04/2015,462.91,APR15L320,Thomas Ridley & Sons Ltd,"Children, Adults & Housing",Learning & Achievement,Borough Catering,Catering - St Ursulas,CATERING AND VENDING SUPPLIES
http://statistics.data.gov.uk/doc/local-authority-district/00AR,London Borough of Havering,27/04/2015,489.89,APR15L321,Thomas Ridley & Sons Ltd,"Children, Adults & Housing",Learning & Achievement,Borough Catering,Catering - Specials - Dycorts,CATERING AND VENDING SUPPLIES
http://statistics.data.gov.uk/doc/local-authority-district/00AR,London Borough of Havering,27/04/2015,527.43,APR15L322,Thomas Ridley & Sons Ltd,"Children, Adults & Housing",Learning & Achievement,Borough Catering,Catering - St Peters,CATERING AND VENDING SUPPLIES
http://statistics.data.gov.uk/doc/local-authority-district/00AR,London Borough of Havering,27/04/2015,530.08,APR15L323,Thomas Ridley & Sons Ltd,"Children, Adults & Housing",Learning & Achievement,Borough Catering,Catering - St Bede's Catholic Primary School,CATERING AND VENDING SUPPLIES
http://statistics.data.gov.uk/doc/local-authority-district/00AR,London Borough of Havering,27/04/2015,561.49,APR15L324,Thomas Ridley & Sons Ltd,"Children, Adults & Housing",Learning & Achievement,Borough Catering,Catering - Oglethorpe,CATERING AND VENDING SUPPLIES
http://statistics.data.gov.uk/doc/local-authority-district/00AR,London Borough of Havering,27/04/2015,571.38,APR15L325,Thomas Ridley & Sons Ltd,"Children, Adults & Housing",Learning & Achievement,Borough Catering,Catering - Elm Park,CATERING AND VENDING SUPPLIES
http://statistics.data.gov.uk/doc/local-authority-district/00AR,London Borough of Havering,27/04/2015,603.56,APR15L326,Thomas Ridley & Sons Ltd,"Children, Adults & Housing",Learning & Achievement,Borough Catering,Catering - Meals on Wheels,CATERING AND VENDING SUPPLIES
http://statistics.data.gov.uk/doc/local-authority-district/00AR,London Borough of Havering,27/04/2015,604.00,APR15L327,Thomas Ridley & Sons Ltd,"Children, Adults & Housing",Learning & Achievement,Borough Catering,Catering - St Albans,CATERING AND VENDING SUPPLIES
http://statistics.data.gov.uk/doc/local-authority-district/00AR,London Borough of Havering,27/04/2015,608.23,APR15L328,Thomas Ridley & Sons Ltd,"Children, Adults & Housing",Learning & Achievement,Borough Catering,Catering - St Patricks,CATERING AND VENDING SUPPLIES
http://statistics.data.gov.uk/doc/local-authority-district/00AR,London Borough of Havering,27/04/2015,612.14,APR15L329,Thomas Ridley & Sons Ltd,"Children, Adults & Housing",Learning & Achievement,Borough Catering,Catering - Parsonage Farm,CATERING AND VENDING SUPPLIES
http://statistics.data.gov.uk/doc/local-authority-district/00AR,London Borough of Havering,27/04/2015,621.41,APR15L330,Thomas Ridley & Sons Ltd,"Children, Adults & Housing",Learning & Achievement,Borough Catering,Catering - Mawney,CATERING AND VENDING SUPPLIES
http://statistics.data.gov.uk/doc/local-authority-district/00AR,London Borough of Havering,27/04/2015,653.17,APR15L331,Thomas Ridley & Sons Ltd,"Children, Adults & Housing",Learning & Achievement,Borough Catering,Catering - Clockhouse,CATERING AND VENDING SUPPLIES
http://statistics.data.gov.uk/doc/local-authority-district/00AR,London Borough of Havering,27/04/2015,673.64,APR15L332,Thomas Ridley & Sons Ltd,"Children, Adults & Housing",Learning & Achievement,Borough Catering,Catering - Branfil,CATERING AND VENDING SUPPLIES
http://statistics.data.gov.uk/doc/local-authority-district/00AR,London Borough of Havering,27/04/2015,694.21,APR15L333,Thomas Ridley & Sons Ltd,"Children, Adults & Housing",Learning & Achievement,Borough Catering,Catering - Harold Wood,CATERING AND VENDING SUPPLIES
http://statistics.data.gov.uk/doc/local-authority-district/00AR,London Borough of Havering,27/04/2015,698.00,APR15L334,Thomas Ridley & Sons Ltd,"Children, Adults & Housing",Learning & Achievement,Borough Catering,Catering - St Marys,CATERING AND VENDING SUPPLIES
http://statistics.data.gov.uk/doc/local-authority-district/00AR,London Borough of Havering,27/04/2015,701.66,APR15L335,Thomas Ridley & Sons Ltd,"Children, Adults & Housing",Learning & Achievement,Borough Catering,Catering - Brookside,CATERING AND VENDING SUPPLIES
http://statistics.data.gov.uk/doc/local-authority-district/00AR,London Borough of Havering,27/04/2015,716.89,APR15L336,Thomas Ridley & Sons Ltd,"Children, Adults & Housing",Learning & Achievement,Borough Catering,Catering - Nelmes,CATERING AND VENDING SUPPLIES
http://statistics.data.gov.uk/doc/local-authority-district/00AR,London Borough of Havering,27/04/2015,737.51,APR15L337,Thomas Ridley & Sons Ltd,"Children, Adults & Housing",Learning & Achievement,Borough Catering,Catering - Whybridge,CATERING AND VENDING SUPPLIES
http://statistics.data.gov.uk/doc/local-authority-district/00AR,London Borough of Havering,27/04/2015,738.32,APR15L338,Thomas Ridley & Sons Ltd,"Children, Adults & Housing",Learning & Achievement,Borough Catering,Catering - Hacton,CATERING AND VENDING SUPPLIES
http://statistics.data.gov.uk/doc/local-authority-district/00AR,London Borough of Havering,27/04/2015,751.66,APR15L339,Thomas Ridley & Sons Ltd,"Children, Adults & Housing",Learning & Achievement,Borough Catering,Catering - Harold Court,CATERING AND VENDING SUPPLIES
http://statistics.data.gov.uk/doc/local-authority-district/00AR,London Borough of Havering,27/04/2015,769.93,APR15L340,Thomas Ridley & Sons Ltd,"Children, Adults & Housing",Learning & Achievement,Borough Catering,Catering - Gidea Park,CATERING AND VENDING SUPPLIES
http://statistics.data.gov.uk/doc/local-authority-district/00AR,London Borough of Havering,27/04/2015,777.78,APR15L341,Thomas Ridley & Sons Ltd,"Children, Adults & Housing",Learning & Achievement,Borough Catering,Catering - Hylands,CATERING AND VENDING SUPPLIES
http://statistics.data.gov.uk/doc/local-authority-district/00AR,London Borough of Havering,27/04/2015,786.65,APR15L342,Thomas Ridley & Sons Ltd,"Children, Adults & Housing",Learning & Achievement,Borough Catering,Catering - Benhurst,CATERING AND VENDING SUPPLIES
http://statistics.data.gov.uk/doc/local-authority-district/00AR,London Borough of Havering,27/04/2015,803.80,APR15L343,Thomas Ridley & Sons Ltd,"Children, Adults & Housing",Learning & Achievement,Borough Catering,Catering - Newtons,CATERING AND VENDING SUPPLIES
http://statistics.data.gov.uk/doc/local-authority-district/00AR,London Borough of Havering,27/04/2015,844.94,APR15L344,Thomas Ridley & Sons Ltd,"Children, Adults & Housing",Learning & Achievement,Borough Catering,Catering - Engayne,CATERING AND VENDING SUPPLIES
http://statistics.data.gov.uk/doc/local-authority-district/00AR,London Borough of Havering,27/04/2015,864.49,APR15L345,Thomas Ridley & Sons Ltd,"Children, Adults & Housing",Learning & Achievement,Borough Catering,Catering - Rainham,CATERING AND VENDING SUPPLIES
http://statistics.data.gov.uk/doc/local-authority-district/00AR,London Borough of Havering,27/04/2015,893.19,APR15L346,Thomas Ridley & Sons Ltd,"Children, Adults & Housing",Learning & Achievement,Borough Catering,Catering - Scargill,CATERING AND VENDING SUPPLIES
http://statistics.data.gov.uk/doc/local-authority-district/00AR,London Borough of Havering,27/04/2015,927.10,APR15L347,Thomas Ridley & Sons Ltd,"Children, Adults & Housing",Learning & Achievement,Borough Catering,Catering - Mead,CATERING AND VENDING SUPPLIES
http://statistics.data.gov.uk/doc/local-authority-district/00AR,London Borough of Havering,27/04/2015,939.57,APR15L348,Thomas Ridley & Sons Ltd,"Children, Adults & Housing",Learning & Achievement,Borough Catering,Catering - Ardleigh Green,CATERING AND VENDING SUPPLIES
http://statistics.data.gov.uk/doc/local-authority-district/00AR,London Borough of Havering,27/04/2015,947.60,APR15L349,Thomas Ridley & Sons Ltd,"Children, Adults & Housing",Learning & Achievement,Borough Catering,Catering - Wykeham,CATERING AND VENDING SUPPLIES
http://statistics.data.gov.uk/doc/local-authority-district/00AR,London Borough of Havering,27/04/2015,969.51,APR15L350,Thomas Ridley & Sons Ltd,"Children, Adults & Housing",Learning & Achievement,Borough Catering,Catering - Pyrgo Priory,CATERING AND VENDING SUPPLIES
http://statistics.data.gov.uk/doc/local-authority-district/00AR,London Borough of Havering,27/04/2015,978.99,APR15L351,Thomas Ridley & Sons Ltd,"Children, Adults & Housing",Learning & Achievement,Borough Catering,Catering - Rise Park,CATERING AND VENDING SUPPLIES
http://statistics.data.gov.uk/doc/local-authority-district/00AR,London Borough of Havering,27/04/2015,981.44,APR15L352,Thomas Ridley & Sons Ltd,"Children, Adults & Housing",Learning & Achievement,Borough Catering,Catering - Langtons,CATERING AND VENDING SUPPLIES
http://statistics.data.gov.uk/doc/local-authority-district/00AR,London Borough of Havering,27/04/2015,1007.95,APR15L353,Thomas Ridley & Sons Ltd,"Children, Adults & Housing",Learning & Achievement,Borough Catering,Catering - Squirrels Heath,CATERING AND VENDING SUPPLIES
http://statistics.data.gov.uk/doc/local-authority-district/00AR,London Borough of Havering,27/04/2015,1085.70,APR15L354,Thomas Ridley & Sons Ltd,"Children, Adults & Housing",Learning & Achievement,Borough Catering,Catering - Sanders Draper,CATERING AND VENDING SUPPLIES
http://statistics.data.gov.uk/doc/local-authority-district/00AR,London Borough of Havering,27/04/2015,1086.07,APR15L355,Thomas Ridley & Sons Ltd,"Children, Adults & Housing",Learning & Achievement,Borough Catering,Catering - Upminster,CATERING AND VENDING SUPPLIES
http://statistics.data.gov.uk/doc/local-authority-district/00AR,London Borough of Havering,27/04/2015,1157.60,APR15L356,Thomas Ridley & Sons Ltd,"Children, Adults & Housing",Learning & Achievement,Borough Catering,Catering - St Edwards Primary,CATERING AND VENDING SUPPLIES
http://statistics.data.gov.uk/doc/local-authority-district/00AR,London Borough of Havering,27/04/2015,1205.78,APR15L357,Thomas Ridley & Sons Ltd,"Children, Adults & Housing",Learning & Achievement,Borough Catering,Catering - Crownfield,CATERING AND VENDING SUPPLIES
http://statistics.data.gov.uk/doc/local-authority-district/00AR,London Borough of Havering,27/04/2015,1237.62,APR15L358,Thomas Ridley & Sons Ltd,"Children, Adults & Housing",Learning & Achievement,Borough Catering,Catering - Towers,CATERING AND VENDING SUPPLIES
http://statistics.data.gov.uk/doc/local-authority-district/00AR,London Borough of Havering,27/04/2015,1243.87,APR15L359,Thomas Ridley & Sons Ltd,"Children, Adults & Housing",Learning & Achievement,Borough Catering,Catering - Parklands,CATERING AND VENDING SUPPLIES
http://statistics.data.gov.uk/doc/local-authority-district/00AR,London Borough of Havering,27/04/2015,1243.93,APR15L360,Thomas Ridley & Sons Ltd,"Children, Adults & Housing",Learning & Achievement,Borough Catering,Catering - Redden Court,CATERING AND VENDING SUPPLIES
http://statistics.data.gov.uk/doc/local-authority-district/00AR,London Borough of Havering,27/04/2015,1273.85,APR15L361,Thomas Ridley & Sons Ltd,"Children, Adults & Housing",Learning & Achievement,Borough Catering,Catering - Hilldene,CATERING AND VENDING SUPPLIES
http://statistics.data.gov.uk/doc/local-authority-district/00AR,London Borough of Havering,27/04/2015,1298.47,APR15L362,Thomas Ridley & Sons Ltd,"Children, Adults & Housing",Learning & Achievement,Borough Catering,Catering - Bower Park,CATERING AND VENDING SUPPLIES
http://statistics.data.gov.uk/doc/local-authority-district/00AR,London Borough of Havering,27/04/2015,1401.68,APR15L363,Thomas Ridley & Sons Ltd,"Children, Adults & Housing",Learning & Achievement,Borough Catering,Catering - Broadford,CATERING AND VENDING SUPPLIES
http://statistics.data.gov.uk/doc/local-authority-district/00AR,London Borough of Havering,27/04/2015,1523.57,APR15L364,Thomas Ridley & Sons Ltd,"Children, Adults & Housing",Learning & Achievement,Borough Catering,Catering - Frances Bardsley,CATERING AND VENDING SUPPLIES
http://statistics.data.gov.uk/doc/local-authority-district/00AR,London Borough of Havering,27/04/2015,1562.39,APR15L365,Thomas Ridley & Sons Ltd,"Children, Adults & Housing",Learning & Achievement,Borough Catering,Catering - Crowlands,CATERING AND VENDING SUPPLIES
http://statistics.data.gov.uk/doc/local-authority-district/00AR,London Borough of Havering,27/04/2015,1880.69,APR15L366,Thomas Ridley & Sons Ltd,"Children, Adults & Housing",Learning & Achievement,Borough Catering,Catering - Hall Mead,CATERING AND VENDING SUPPLIES
http://statistics.data.gov.uk/doc/local-authority-district/00AR,London Borough of Havering,27/04/2015,2076.29,APR15L367,Thomas Ridley & Sons Ltd,"Children, Adults & Housing",Learning & Achievement,Borough Catering,Catering - Brittons,CATERING AND VENDING SUPPLIES
http://statistics.data.gov.uk/doc/local-authority-district/00AR,London Borough of Havering,27/04/2015,2225.58,APR15L368,Thomas Ridley & Sons Ltd,"Children, Adults & Housing",Learning & Achievement,Borough Catering,Catering - Town Hall,CATERING AND VENDING SUPPLIES
http://statistics.data.gov.uk/doc/local-authority-district/00AR,London Borough of Havering,27/04/2015,2371.86,APR15L369,Thomas Ridley & Sons Ltd,"Children, Adults & Housing",Learning & Achievement,Borough Catering,Catering - Royal Liberty,CATERING AND VENDING SUPPLIES
http://statistics.data.gov.uk/doc/local-authority-district/00AR,London Borough of Havering,16/04/2015,2000.00,APR15L370,Emerson Park Academy,"Children, Adults & Housing",Learning & Achievement,Alternative Provision including LAC education,Social Inclusion,CLIENT SUPPORT - THIRD PARTY
http://statistics.data.gov.uk/doc/local-authority-district/00AR,London Borough of Havering,08/04/2015,2278.00,APR15L371,Emerson Park Academy,"Children, Adults & Housing",Learning & Achievement,SEN,Primary Support,GENERAL CONTINGENCY
http://statistics.data.gov.uk/doc/local-authority-district/00AR,London Borough of Havering,08/04/2015,21411.00,APR15L372,Redden Court School Academy,"Children, Adults & Housing",Learning & Achievement,SEN,Primary Support,GENERAL CONTINGENCY
http://statistics.data.gov.uk/doc/local-authority-district/00AR,London Borough of Havering,30/04/2015,1730.00,APR15L373,Maylands Healthcare Ltd,Public Health,Public Health,PH - NHS Health Check Programme,NHS Health Checks - Mandatory,PRIVATE CONTRACTORS PAYMENT - OTHER
http://statistics.data.gov.uk/doc/local-authority-district/00AR,London Borough of Havering,30/04/2015,1405.00,APR15L374,Dr C Dahs & Dr I P Humberstone,Public Health,Public Health,PH - NHS Health Check Programme,NHS Health Checks - Mandatory,PRIVATE CONTRACTORS PAYMENT - OTHER
http://statistics.data.gov.uk/doc/local-authority-district/00AR,London Borough of Havering,30/04/2015,1450.00,APR15L375,The Partners t/a Spring Farm Surgery,Public Health,Public Health,PH - NHS Health Check Programme,NHS Health Checks - Mandatory,PRIVATE CONTRACTORS PAYMENT - OTHER
http://statistics.data.gov.uk/doc/local-authority-district/00AR,London Borough of Havering,23/04/2015,887.12,APR15L376,Capita IT Services (BSF) Ltd,oneSource Shared,oS ICT Services,oS Commercial Services,Educational Computer Centre,ICT SOFTWARE
http://statistics.data.gov.uk/doc/local-authority-district/00AR,London Borough of Havering,23/04/2015,750.64,APR15L377,Capita IT Services (BSF) Ltd,oneSource Shared,oS ICT Services,oS Commercial Services,Educational Computer Centre,ICT SOFTWARE
http://statistics.data.gov.uk/doc/local-authority-district/00AR,London Borough of Havering,23/04/2015,853.00,APR15L378,Capita IT Services (BSF) Ltd,oneSource Shared,oS ICT Services,oS Commercial Services,Educational Computer Centre,ICT SOFTWARE
http://statistics.data.gov.uk/doc/local-authority-district/00AR,London Borough of Havering,16/04/2015,849.11,APR15L379,F Barnes Solicitors,"Children, Adults & Housing",Childrens Services,Prevention & Intervention,Legal Costs - Children'S Social Care,LEGAL FEES
http://statistics.data.gov.uk/doc/local-authority-district/00AR,London Borough of Havering,11/04/2015,582.00,APR15L380,Metloc Printers Ltd,"Children, Adults & Housing",Learning & Achievement,Schools Provision and Commissioning,14-19 Commissioning Team,GENERAL OFFICE EXPENSES
http://statistics.data.gov.uk/doc/local-authority-district/00AR,London Borough of Havering,10/04/2015,7500.00,APR15L381,Alzheimer's Society (Central Office),"Children, Adults & Housing",Adult Services,Strategy and Commissioning,NHS Support for Social Care,PRIVATE CONTRACTORS PAYMENT - OTHER
http://statistics.data.gov.uk/doc/local-authority-district/00AR,London Borough of Havering,30/04/2015,1180.00,APR15L382,Mawney Medical Centre,Public Health,Public Health,PH - NHS Health Check Programme,NHS Health Checks - Mandatory,PRIVATE CONTRACTORS PAYMENT - OTHER
http://statistics.data.gov.uk/doc/local-authority-district/00AR,London Borough of Havering,30/04/2015,3605.00,APR15L383,Dr B Beheshi & Dr M Sanomi,Public Health,Public Health,PH - NHS Health Check Programme,NHS Health Checks - Mandatory,PRIVATE CONTRACTORS PAYMENT - OTHER
http://statistics.data.gov.uk/doc/local-authority-district/00AR,London Borough of Havering,24/04/2015,2130.00,APR15L384,Javalin Network Services Ltd,oneSource Shared,oS ICT Services,oS Commercial Services,Educational Computer Centre,PRIVATE CONTRACTORS PAYMENT - OTHER
http://statistics.data.gov.uk/doc/local-authority-district/00AR,London Borough of Havering,01/04/2015,861.12,APR15L385,L.P Window Controls Ltd,oneSource Non-Shared LBH,Asset Management,Premises Management,Corporate Landlord-LBH,CYCLICAL/PLANNED MAINTENANCE - BUILDING
http://statistics.data.gov.uk/doc/local-authority-district/00AR,London Borough of Havering,16/04/2015,2000.00,APR15L386,Frances Bardsley Academy for Girls,"Children, Adults & Housing",Learning & Achievement,Alternative Provision including LAC education,Social Inclusion,CLIENT SUPPORT - THIRD PARTY
http://statistics.data.gov.uk/doc/local-authority-district/00AR,London Borough of Havering,08/04/2015,733.00,APR15L387,Frances Bardsley Academy for Girls,"Children, Adults & Housing",Learning & Achievement,SEN,Primary Support,GENERAL CONTINGENCY
http://statistics.data.gov.uk/doc/local-authority-district/00AR,London Borough of Havering,27/04/2015,1800.00,APR15L388,HWA,"Children, Adults & Housing",Childrens Services,Early Help,Early Help Business Unit,PRIVATE CONTRACTORS PAYMENT - OTHER
http://statistics.data.gov.uk/doc/local-authority-district/00AR,London Borough of Havering,09/04/2015,550.00,APR15L389,Collabor8 AV Ltd,"Children, Adults & Housing",Adult Services,Learning Disabilities,Avelon Centre,PRIVATE CONTRACTORS PAYMENT - OTHER
http://statistics.data.gov.uk/doc/local-authority-district/00AR,London Borough of Havering,17/04/2015,2300.00,APR15L390,Sanctum Personal Development Ltd,Public Health,Public Health,PH - Substance Misuse,Alcohol Misuse - Adults,RESPITE CARE - PRIVATE CONTRACTORS PAYMENT
http://statistics.data.gov.uk/doc/local-authority-district/00AR,London Borough of Havering,17/04/2015,1500.00,APR15L391,Sanctum Personal Development Ltd,Public Health,Public Health,PH - Substance Misuse,Drug Misuse - Adults,RESPITE CARE - PRIVATE CONTRACTORS PAYMENT
http://statistics.data.gov.uk/doc/local-authority-district/00AR,London Borough of Havering,17/04/2015,2710.71,APR15L392,Sanctum Personal Development Ltd,Public Health,Public Health,PH - Substance Misuse,Drug Misuse - Adults,RESPITE CARE - PRIVATE CONTRACTORS PAYMENT
http://statistics.data.gov.uk/doc/local-authority-district/00AR,London Borough of Havering,30/04/2015,68977.25,APR15L393,Children's Trust,"Children, Adults & Housing",Learning & Achievement,Children With Disabilities,CWD Placements,RESIDENTIAL PLACEMENTS - PRIVATE CONTRACTORS PAYMENT
http://statistics.data.gov.uk/doc/local-authority-district/00AR,London Borough of Havering,08/04/2015,603.00,APR15L394,Upminster Infant School Academy,"Children, Adults & Housing",Learning & Achievement,SEN,Primary Support,GENERAL CONTINGENCY
http://statistics.data.gov.uk/doc/local-authority-district/00AR,London Borough of Havering,07/04/2015,1496.99,APR15L395,Marula House Ltd,"Children, Adults & Housing",Mental Health,Mental Health - Non Section 75,Mental Health Support,LONG TERM SUPPORT - COMMUNITY: SUPPORTED LIVING
http://statistics.data.gov.uk/doc/local-authority-district/00AR,London Borough of Havering,07/04/2015,1324.01,APR15L396,Marula House Ltd,"Children, Adults & Housing",Mental Health,Mental Health - Non Section 75,Mental Health Support,LONG TERM SUPPORT - COMMUNITY: SUPPORTED LIVING
http://statistics.data.gov.uk/doc/local-authority-district/00AR,London Borough of Havering,07/04/2015,1237.83,APR15L397,Marula House Ltd,"Children, Adults & Housing",Mental Health,Mental Health - Non Section 75,Mental Health Support,LONG TERM SUPPORT - COMMUNITY: SUPPORTED LIVING
http://statistics.data.gov.uk/doc/local-authority-district/00AR,London Borough of Havering,07/04/2015,3277.01,APR15L398,Marula House Ltd,"Children, Adults & Housing",Mental Health,Mental Health - Non Section 75,Mental Health Support,LONG TERM SUPPORT - COMMUNITY: SUPPORTED LIVING
http://statistics.data.gov.uk/doc/local-authority-district/00AR,London Borough of Havering,07/04/2015,1736.00,APR15L399,Marula House Ltd,"Children, Adults & Housing",Mental Health,Mental Health - Non Section 75,Mental Health Support,LONG TERM SUPPORT - COMMUNITY: SUPPORTED LIVING
http://statistics.data.gov.uk/doc/local-authority-district/00AR,London Borough of Havering,21/04/2015,1448.70,APR15L400,Marula House Ltd,"Children, Adults & Housing",Mental Health,Mental Health - Non Section 75,Mental Health Support,LONG TERM SUPPORT - COMMUNITY: SUPPORTED LIVING
http://statistics.data.gov.uk/doc/local-authority-district/00AR,London Borough of Havering,21/04/2015,1281.30,APR15L401,Marula House Ltd,"Children, Adults & Housing",Mental Health,Mental Health - Non Section 75,Mental Health Support,LONG TERM SUPPORT - COMMUNITY: SUPPORTED LIVING
http://statistics.data.gov.uk/doc/local-authority-district/00AR,London Borough of Havering,21/04/2015,1197.90,APR15L402,Marula House Ltd,"Children, Adults & Housing",Mental Health,Mental Health - Non Section 75,Mental Health Support,LONG TERM SUPPORT - COMMUNITY: SUPPORTED LIVING
http://statistics.data.gov.uk/doc/local-authority-district/00AR,London Borough of Havering,21/04/2015,3171.30,APR15L403,Marula House Ltd,"Children, Adults & Housing",Mental Health,Mental Health - Non Section 75,Mental Health Support,LONG TERM SUPPORT - COMMUNITY: SUPPORTED LIVING
http://statistics.data.gov.uk/doc/local-authority-district/00AR,London Borough of Havering,21/04/2015,1680.00,APR15L404,Marula House Ltd,"Children, Adults & Housing",Mental Health,Mental Health - Non Section 75,Mental Health Support,LONG TERM SUPPORT - COMMUNITY: SUPPORTED LIVING
http://statistics.data.gov.uk/doc/local-authority-district/00AR,London Borough of Havering,10/04/2015,685.00,APR15L405,PC Environmental Ltd,oneSource Shared,oS Asset Management Services,oS Health & Safety,Schools Health & Safety Assessment Service,PRIVATE CONTRACTORS PAYMENT - OTHER
http://statistics.data.gov.uk/doc/local-authority-district/00AR,London Borough of Havering,08/04/2015,3418.00,APR15L406,Bower Park Academy,"Children, Adults & Housing",Learning & Achievement,SEN,Primary Support,GENERAL CONTINGENCY
http://statistics.data.gov.uk/doc/local-authority-district/00AR,London Borough of Havering,30/04/2015,1060.00,APR15L407,Central Park Surgery,Public Health,Public Health,PH - NHS Health Check Programme,NHS Health Checks - Mandatory,PRIVATE CONTRACTORS PAYMENT - OTHER
http://statistics.data.gov.uk/doc/local-authority-district/00AR,London Borough of Havering,17/04/2015,4950.00,APR15L408,Southern Drain Services Ltd,Community and Resources,Culture & Leisure,Sports Dev & Outdoor Ctrs,Hornchurch Stadium,GROUNDS MAINTENANCE
http://statistics.data.gov.uk/doc/local-authority-district/00AR,London Borough of Havering,01/04/2015,4261.17,APR15L409,London Borough of Lambeth.,Community and Resources,Transformation Agenda,Internal Shared Services Transformation,One Oracle,PAYMENT TO OTHER LOCAL AUTHORITIES
http://statistics.data.gov.uk/doc/local-authority-district/00AR,London Borough of Havering,21/04/2015,500.00,APR15L410,Cambridge Environmental Research Consultants Ltd,Community and Resources,Regulatory Services,Environmental Health,Envir Health Housing & Pub Health,PRIVATE CONTRACTORS PAYMENT - OTHER
http://statistics.data.gov.uk/doc/local-authority-district/00AR,London Borough of Havering,02/04/2015,8480.00,APR15L411,Cambian Learning Disabilities Ltd,"Children, Adults & Housing",Adult Services,Learning Disabilities,Learning Disability Support,RESIDENTIAL PLACEMENTS - PRIVATE CONTRACTORS PAYMENT
http://statistics.data.gov.uk/doc/local-authority-district/00AR,London Borough of Havering,07/04/2015,2333.00,APR15L412,Croydon Council,Community and Resources,Transformation Agenda,Internal Shared Services Transformation,One Oracle,CONSULTANCY FEES
http://statistics.data.gov.uk/doc/local-authority-district/00AR,London Borough of Havering,27/04/2015,6250.00,APR15L413,SHL Group Ltd,oneSource Non-Shared LBH,Strategic HR & OD,People & Change,Organisational Development,STAFF DEVELOPMENT AND TRAINING
http://statistics.data.gov.uk/doc/local-authority-district/00AR,London Borough of Havering,08/04/2015,2111.00,APR15L414,Trinity School,"Children, Adults & Housing",Learning & Achievement,SEN,Post-16 High Needs Top- up DSG,GENERAL CONTINGENCY
http://statistics.data.gov.uk/doc/local-authority-district/00AR,London Borough of Havering,16/04/2015,579.54,APR15L415,Marston Group,"Children, Adults & Housing",Housing Services,Strategy,Private Sector Leasing,LEGAL FEES
http://statistics.data.gov.uk/doc/local-authority-district/00AR,London Borough of Havering,08/04/2015,964.00,APR15L416,The Chafford School Academy Trust,"Children, Adults & Housing",Learning & Achievement,SEN,Primary Support,GENERAL CONTINGENCY
http://statistics.data.gov.uk/doc/local-authority-district/00AR,London Borough of Havering,23/04/2015,2715.57,APR15L417,Beacon Hill Academy,"Children, Adults & Housing",Learning & Achievement,Special Educational Needs and Disabilities,SEND Team ? 5-19 years - DSG,"PURCHASE - EQUIPMENT, FURNITURE AND MATERIALS"
http://statistics.data.gov.uk/doc/local-authority-district/00AR,London Borough of Havering,08/04/2015,13976.00,APR15L418,Beacon Hill Academy,"Children, Adults & Housing",Learning & Achievement,SEN,Post-16 High Needs Top- up DSG,GENERAL CONTINGENCY
http://statistics.data.gov.uk/doc/local-authority-district/00AR,London Borough of Havering,11/04/2015,19217.00,APR15L419,Beacon Hill Academy,"Children, Adults & Housing",Learning & Achievement,SEN,Special Support,PRIVATE CONTRACTORS PAYMENT - OTHER
http://statistics.data.gov.uk/doc/local-authority-district/00AR,London Borough of Havering,11/04/2015,13304.08,APR15L420,Beacon Hill Academy,"Children, Adults & Housing",Learning & Achievement,SEN,Special Support,PRIVATE CONTRACTORS PAYMENT - OTHER
http://statistics.data.gov.uk/doc/local-authority-district/00AR,London Borough of Havering,11/04/2015,13304.08,APR15L421,Beacon Hill Academy,"Children, Adults & Housing",Learning & Achievement,SEN,Special Support,PRIVATE CONTRACTORS PAYMENT - OTHER
http://statistics.data.gov.uk/doc/local-authority-district/00AR,London Borough of Havering,11/04/2015,19217.00,APR15L422,Beacon Hill Academy,"Children, Adults & Housing",Learning & Achievement,SEN,Special Support,PRIVATE CONTRACTORS PAYMENT - OTHER
http://statistics.data.gov.uk/doc/local-authority-district/00AR,London Borough of Havering,22/04/2015,2985.00,APR15L423,Alpha Parking Ltd,Community and Resources,Streetcare,Streetcare Management,Street Care Support Costs,STAFF DEVELOPMENT AND TRAINING
http://statistics.data.gov.uk/doc/local-authority-district/00AR,London Borough of Havering,01/04/2015,1160.00,APR15L424,Randstad CPE,Community and Resources,Regulatory Services,Development Control Svs,Planning Control,AGENCY STAFF
http://statistics.data.gov.uk/doc/local-authority-district/00AR,London Borough of Havering,09/04/2015,1160.00,APR15L425,Randstad CPE,Community and Resources,Regulatory Services,Development Control Svs,Planning Control,AGENCY STAFF
http://statistics.data.gov.uk/doc/local-authority-district/00AR,London Borough of Havering,15/04/2015,1160.00,APR15L426,Randstad CPE,Community and Resources,Regulatory Services,Development Control Svs,Planning Control,AGENCY STAFF
http://statistics.data.gov.uk/doc/local-authority-district/00AR,London Borough of Havering,16/04/2015,8927.10,APR15L427,Charlton Park Academy,"Children, Adults & Housing",Learning & Achievement,Special Educational Needs and Disabilities,SEND Team ? 5-19 years - DSG,SALARIES
http://statistics.data.gov.uk/doc/local-authority-district/00AR,London Borough of Havering,09/04/2015,1043.20,APR15L428,University of London-The Careers Group,oneSource Shared,oS Strategic & Operational HR,oS Strategic & Operational HR,People & Change,PRIVATE CONTRACTORS PAYMENT - OTHER
http://statistics.data.gov.uk/doc/local-authority-district/00AR,London Borough of Havering,17/04/2015,22980.00,APR15L429,Ambitious about Autism,"Children, Adults & Housing",Learning & Achievement,SEN,Residential School Budget,PRIVATE CONTRACTORS PAYMENT - OTHER
http://statistics.data.gov.uk/doc/local-authority-district/00AR,London Borough of Havering,17/04/2015,22980.00,APR15L430,Ambitious about Autism,"Children, Adults & Housing",Learning & Achievement,SEN,Residential School Budget,PRIVATE CONTRACTORS PAYMENT - OTHER
http://statistics.data.gov.uk/doc/local-authority-district/00AR,London Borough of Havering,17/04/2015,26313.00,APR15L431,Ambitious about Autism,"Children, Adults & Housing",Learning & Achievement,SEN,Residential School Budget,PRIVATE CONTRACTORS PAYMENT - OTHER
http://statistics.data.gov.uk/doc/local-authority-district/00AR,London Borough of Havering,17/04/2015,26313.00,APR15L432,Ambitious about Autism,"Children, Adults & Housing",Learning & Achievement,SEN,Residential School Budget,PRIVATE CONTRACTORS PAYMENT - OTHER
http://statistics.data.gov.uk/doc/local-authority-district/00AR,London Borough of Havering,20/04/2015,918.51,APR15L433,Direct Boot & Shoe Supplies Ltd,Community and Resources,Streetcare,On Street Parking,On/Off Street Parking Enforcement,"CLOTHES, UNIFORM AND LAUNDRY"
http://statistics.data.gov.uk/doc/local-authority-district/00AR,London Borough of Havering,27/04/2015,28991.01,APR15L434,National Star College,"Children, Adults & Housing",Learning & Achievement,SEN,Residential Post Budget,PRIVATE CONTRACTORS PAYMENT - OTHER
http://statistics.data.gov.uk/doc/local-authority-district/00AR,London Borough of Havering,07/04/2015,650.00,APR15L435,**Redacted Personal Data**,"Children, Adults & Housing",Childrens Services,Prevention & Intervention,Social Work Improvement Team,STAFF DEVELOPMENT AND TRAINING
http://statistics.data.gov.uk/doc/local-authority-district/00AR,London Borough of Havering,08/04/2015,470.80,APR15L436,Biffa Waste Services Ltd,oneSource Non-Shared LBH,Asset Management,Prop & Land Hldgs,Romford Market,VEHICLE HIRE
http://statistics.data.gov.uk/doc/local-authority-district/00AR,London Borough of Havering,08/04/2015,656.31,APR15L437,Biffa Waste Services Ltd,Community and Resources,Streetcare,Refuse Coll & Waste Dis,Disp Ind & Comm Waste-ELWA,WASTE DISPOSAL COSTS
http://statistics.data.gov.uk/doc/local-authority-district/00AR,London Borough of Havering,11/04/2015,625.47,APR15L438,Biffa Waste Services Ltd,oneSource Non-Shared LBH,Asset Management,Prop & Land Hldgs,Romford Market,VEHICLE HIRE
http://statistics.data.gov.uk/doc/local-authority-district/00AR,London Borough of Havering,11/04/2015,898.46,APR15L439,Biffa Waste Services Ltd,Community and Resources,Streetcare,Refuse Coll & Waste Dis,Disp Ind & Comm Waste-ELWA,WASTE DISPOSAL COSTS
http://statistics.data.gov.uk/doc/local-authority-district/00AR,London Borough of Havering,11/04/2015,614.40,APR15L440,Biffa Waste Services Ltd,oneSource Non-Shared LBH,Asset Management,Prop & Land Hldgs,Romford Market,VEHICLE HIRE
http://statistics.data.gov.uk/doc/local-authority-district/00AR,London Borough of Havering,27/04/2015,3960.00,APR15L441,Guy's & St Thomas' NHS Foundation Trust,Public Health,Public Health,PH - Sexual Health,SH - STI Testing and Treatment,PRIVATE CONTRACTORS PAYMENT - OTHER
http://statistics.data.gov.uk/doc/local-authority-district/00AR,London Borough of Havering,16/04/2015,1468.50,APR15L442,Manipura Ltd,Community and Resources,Business & Performance,"Complaints, Information & Communication","Complaints, Information & Communication Team",PRIVATE CONTRACTORS PAYMENT - OTHER
http://statistics.data.gov.uk/doc/local-authority-district/00AR,London Borough of Havering,27/04/2015,7905.32,APR15L443,Chelsea & Westminster Hospital NHS Foundation Trust,Public Health,Public Health,PH - Sexual Health,SH - STI Testing and Treatment,PRIVATE CONTRACTORS PAYMENT - OTHER
http://statistics.data.gov.uk/doc/local-authority-district/00AR,London Borough of Havering,09/04/2015,6153.00,APR15L444,Intec Public Sector,oneSource Shared,oS Finance,"oS Audit, Risk, Insurance & Fraud",Benefits - Fraud,PRIVATE CONTRACTORS PAYMENT - OTHER
http://statistics.data.gov.uk/doc/local-authority-district/00AR,London Borough of Havering,27/04/2015,10000.00,APR15L445,Homerton University Hospital NHS Foundation Trust,Public Health,Public Health,PH - Sexual Health,"SH - Advice, Prevention and Promotion",PRIVATE CONTRACTORS PAYMENT - OTHER
http://statistics.data.gov.uk/doc/local-authority-district/00AR,London Borough of Havering,28/04/2015,500.00,APR15L446,**Redacted Personal Data**,"Children, Adults & Housing",Childrens Services,Early Help,Early Help Advisory Team,PRIVATE CONTRACTORS PAYMENT - OTHER
http://statistics.data.gov.uk/doc/local-authority-district/00AR,London Borough of Havering,09/04/2015,500.00,APR15L447,**Redacted Personal Data**,"Children, Adults & Housing",Childrens Services,Early Help,Early Help Advisory Team,PRIVATE CONTRACTORS PAYMENT - OTHER
http://statistics.data.gov.uk/doc/local-authority-district/00AR,London Borough of Havering,11/04/2015,1624.20,APR15L448,Physiocomestoyou Ltd,"Children, Adults & Housing",Learning & Achievement,Special Educational Needs and Disabilities,CAD - Central Charges,PRIVATE CONTRACTORS PAYMENT - OTHER
http://statistics.data.gov.uk/doc/local-authority-district/00AR,London Borough of Havering,08/04/2015,1359.00,APR15L449,Drapers Brookside Junior School,"Children, Adults & Housing",Learning & Achievement,SEN,Primary Support,GENERAL CONTINGENCY
http://statistics.data.gov.uk/doc/local-authority-district/00AR,London Borough of Havering,28/04/2015,4332.00,APR15L450,Imperial College Healthcare NHS Trust,Public Health,Public Health,PH - Sexual Health,SH - STI Testing and Treatment,PRIVATE CONTRACTORS PAYMENT - OTHER
http://statistics.data.gov.uk/doc/local-authority-district/00AR,London Borough of Havering,07/04/2015,1425.00,APR15L451,Choice Teachers (South) Ltd,"Children, Adults & Housing",Learning & Achievement,Alternative Provision including LAC education,Social Inclusion,AGENCY STAFF
http://statistics.data.gov.uk/doc/local-authority-district/00AR,London Borough of Havering,07/04/2015,1425.00,APR15L452,Choice Teachers (South) Ltd,"Children, Adults & Housing",Learning & Achievement,Alternative Provision including LAC education,Social Inclusion,AGENCY STAFF
http://statistics.data.gov.uk/doc/local-authority-district/00AR,London Borough of Havering,23/04/2015,1140.00,APR15L453,Choice Teachers (South) Ltd,"Children, Adults & Housing",Learning & Achievement,Alternative Provision including LAC education,Social Inclusion,AGENCY STAFF
http://statistics.data.gov.uk/doc/local-authority-district/00AR,London Borough of Havering,14/04/2015,908.70,APR15L454,Cornerways Childrens Services Ltd,"Children, Adults & Housing",Childrens Services,Existing Placements,LAC Placements,PRIVATE CONTRACTORS PAYMENT - OTHER
http://statistics.data.gov.uk/doc/local-authority-district/00AR,London Borough of Havering,14/04/2015,4688.04,APR15L455,Cornerways Childrens Services Ltd,"Children, Adults & Housing",Childrens Services,Existing Placements,LAC Placements,RESIDENTIAL PLACEMENTS - PRIVATE CONTRACTORS PAYMENT
http://statistics.data.gov.uk/doc/local-authority-district/00AR,London Borough of Havering,14/04/2015,908.70,APR15L456,Cornerways Childrens Services Ltd,"Children, Adults & Housing",Childrens Services,Existing Placements,LAC Placements,PRIVATE CONTRACTORS PAYMENT - OTHER
http://statistics.data.gov.uk/doc/local-authority-district/00AR,London Borough of Havering,15/04/2015,3308.00,APR15L457,Peter Brett Associates LLP,Community and Resources,Economic Development,Economic Regeneration,Harold Hill Ambitions,CONSULTANCY FEES
http://statistics.data.gov.uk/doc/local-authority-district/00AR,London Borough of Havering,09/04/2015,550.00,APR15L458,London Telecare Ltd,"Children, Adults & Housing",Housing (HRA),Hsg Needs & Strategy,Havering Telecare Centre,MEMBERSHIP AND SUBSCRIPTIONS
http://statistics.data.gov.uk/doc/local-authority-district/00AR,London Borough of Havering,28/04/2015,1188.00,APR15L459,Signhealth,"Children, Adults & Housing",Learning & Achievement,Children With Disabilities,Child'n With Disab'y Team,SECTION 17 - PRIVATE CONTRACTORS PAYMENT
http://statistics.data.gov.uk/doc/local-authority-district/00AR,London Borough of Havering,28/04/2015,1848.00,APR15L460,Signhealth,"Children, Adults & Housing",Learning & Achievement,Children With Disabilities,Child'n With Disab'y Team,SECTION 17 - PRIVATE CONTRACTORS PAYMENT
http://statistics.data.gov.uk/doc/local-authority-district/00AR,London Borough of Havering,09/04/2015,1000.00,APR15L461,Arc Theatre,Community and Resources,Policy & Community Manager,Community Safety,Building Safer Communities Fund,PRIVATE CONTRACTORS PAYMENT - OTHER
http://statistics.data.gov.uk/doc/local-authority-district/00AR,London Borough of Havering,02/04/2015,1974.00,APR15L462,Qwizdom Uk Ltd,"Children, Adults & Housing",Housing (HRA),Community Support Services,Community Engagement HRA,MISCELLANEOUS EXPENSES
http://statistics.data.gov.uk/doc/local-authority-district/00AR,London Borough of Havering,15/04/2015,1462.50,APR15L463,NorthgateArinso UK Ltd,Community and Resources,Transformation Agenda,People And Change Transformation,Reward & Recognition,PRIVATE CONTRACTORS PAYMENT - OTHER
http://statistics.data.gov.uk/doc/local-authority-district/00AR,London Borough of Havering,15/04/2015,1950.00,APR15L464,NorthgateArinso UK Ltd,Community and Resources,Transformation Agenda,People And Change Transformation,Reward & Recognition,PRIVATE CONTRACTORS PAYMENT - OTHER
http://statistics.data.gov.uk/doc/local-authority-district/00AR,London Borough of Havering,14/04/2015,600.00,APR15L465,MD Professional Consultancy Ltd,"Children, Adults & Housing",Adult Services,Health & Social Care Other,Adults Social Care Workforce Grant,STAFF DEVELOPMENT AND TRAINING
http://statistics.data.gov.uk/doc/local-authority-district/00AR,London Borough of Havering,02/04/2015,20000.00,APR15L466,Sheils Flynn Ltd,Community and Resources,Economic Development,Economic Regeneration,Economic Development Implementation,PRIVATE CONTRACTORS PAYMENT - OTHER
http://statistics.data.gov.uk/doc/local-authority-district/00AR,London Borough of Havering,28/04/2015,22482.00,APR15L467,Royal Society for Public Health,Public Health,Public Health,PH - Misc. Public Health Services,Miscellaneous / Other PH Contracts,PRIVATE CONTRACTORS PAYMENT - OTHER
http://statistics.data.gov.uk/doc/local-authority-district/00AR,London Borough of Havering,29/04/2015,1900.00,APR15L468,**Redacted Personal Data**,oneSource Non-Shared LBH,Exchequer Services,Revenues Administration,Exchequer Resilience,LEGAL FEES
http://statistics.data.gov.uk/doc/local-authority-district/00AR,London Borough of Havering,08/04/2015,1950.00,APR15L469,The Tavistock Institute of Human Relations,"Children, Adults & Housing",Childrens Services,CIC & Living Away Service - Staff Costs,Fostering Team,STAFF DEVELOPMENT AND TRAINING
http://statistics.data.gov.uk/doc/local-authority-district/00AR,London Borough of Havering,21/04/2015,9499.75,APR15L470,Southdowns Environmental Consultants Ltd,Community and Resources,Regulatory Services,Environmental Health,Envir Health Housing & Pub Health,CONSULTANCY FEES
http://statistics.data.gov.uk/doc/local-authority-district/00AR,London Borough of Havering,21/04/2015,2927.68,APR15L471,Southdowns Environmental Consultants Ltd,Community and Resources,Regulatory Services,Environmental Health,Envir Health Housing & Pub Health,CONSULTANCY FEES
http://statistics.data.gov.uk/doc/local-authority-district/00AR,London Borough of Havering,20/04/2015,5732.18,APR15L472,Southdowns Environmental Consultants Ltd,Community and Resources,Regulatory Services,Environmental Health,Envir Health Housing & Pub Health,CONSULTANCY FEES
http://statistics.data.gov.uk/doc/local-authority-district/00AR,London Borough of Havering,28/04/2015,789.00,APR15L473,Knowledge Academy Ltd,Community and Resources,Culture & Leisure,Youth Facilitation,Strategic Youth Management,STAFF DEVELOPMENT AND TRAINING
http://statistics.data.gov.uk/doc/local-authority-district/00AR,London Borough of Havering,02/04/2015,942.00,APR15L474,AJ Products (UK) Ltd,"Children, Adults & Housing",Housing (HRA),Hsg Needs & Strategy,Hostels For The Homeless,"PURCHASE - EQUIPMENT, FURNITURE AND MATERIALS"
http://statistics.data.gov.uk/doc/local-authority-district/00AR,London Borough of Havering,14/04/2015,2062.83,APR15L475,Ryan Care Fostering Ltd,"Children, Adults & Housing",Childrens Services,Existing Placements,LAC Placements,FOSTERING AGENCY PLACEMENTS - PRIVATE CONTRACTORS PAYMENT
http://statistics.data.gov.uk/doc/local-authority-district/00AR,London Borough of Havering,14/04/2015,3365.67,APR15L476,Ryan Care Fostering Ltd,"Children, Adults & Housing",Childrens Services,Existing Placements,LAC Placements,FOSTERING AGENCY PLACEMENTS - PRIVATE CONTRACTORS PAYMENT
http://statistics.data.gov.uk/doc/local-authority-district/00AR,London Borough of Havering,02/04/2015,800.00,APR15L477,Jack Petchey Foundation,Community and Resources,Culture & Leisure,Music Services,Havering Music Centre,PRIVATE CONTRACTORS PAYMENT - OTHER
http://statistics.data.gov.uk/doc/local-authority-district/00AR,London Borough of Havering,27/04/2015,560.40,APR15L478,Medway NHS Foundation Trust,Public Health,Public Health,PH - Sexual Health,SH - STI Testing and Treatment,PRIVATE CONTRACTORS PAYMENT - OTHER
http://statistics.data.gov.uk/doc/local-authority-district/00AR,London Borough of Havering,07/04/2015,584.00,APR15L479,Just Productions International Ltd,"Children, Adults & Housing",Learning & Achievement,Alternative Provision including LAC education,Early Years Alternative Provision Incl LAC,"ADVERTISING, PUBLICITY AND MARKETING"
http://statistics.data.gov.uk/doc/local-authority-district/00AR,London Borough of Havering,07/04/2015,504.00,APR15L480,Just Productions International Ltd,"Children, Adults & Housing",Learning & Achievement,Alternative Provision including LAC education,Early Years Alternative Provision Incl LAC,"ADVERTISING, PUBLICITY AND MARKETING"
http://statistics.data.gov.uk/doc/local-authority-district/00AR,London Borough of Havering,20/04/2015,640.00,APR15L481,PPMA,oneSource Shared,oS Strategic & Operational HR,oS Strategic & Operational HR,People & Change,MEMBERSHIP AND SUBSCRIPTIONS
http://statistics.data.gov.uk/doc/local-authority-district/00AR,London Borough of Havering,30/04/2015,1020.00,APR15L482,Dr Aarron Patel,Public Health,Public Health,PH - NHS Health Check Programme,NHS Health Checks - Mandatory,PRIVATE CONTRACTORS PAYMENT - OTHER
http://statistics.data.gov.uk/doc/local-authority-district/00AR,London Borough of Havering,07/04/2015,795.00,APR15L483,The National Association of British Market Authorities (NABMA) - Conferences,oneSource Non-Shared LBH,Asset Management,Prop & Land Hldgs,Romford Market,VEHICLE HIRE
http://statistics.data.gov.uk/doc/local-authority-district/00AR,London Borough of Havering,22/04/2015,25260.95,APR15L484,Computershare Voucher Services,oneSource Non-Shared LBH,Internal Shared Services,Shared Services,Payroll - Childcare Vouchers,PRIVATE CONTRACTORS PAYMENT - OTHER
http://statistics.data.gov.uk/doc/local-authority-district/00AR,London Borough of Havering,17/04/2015,1814.36,APR15L485,Work Stress Management Ltd,oneSource Non-Shared LBH,Strategic HR & OD,People & Change,Organisational Development,PRIVATE CONTRACTORS PAYMENT - OTHER
http://statistics.data.gov.uk/doc/local-authority-district/00AR,London Borough of Havering,11/04/2015,968.00,APR15L486,Alere Toxicology Plc,"Children, Adults & Housing",Childrens Services,Prevention & Intervention,Legal Costs - Children'S Social Care,PRIVATE CONTRACTORS PAYMENT - OTHER
http://statistics.data.gov.uk/doc/local-authority-district/00AR,London Borough of Havering,23/04/2015,550.00,APR15L487,Alere Toxicology Plc,"Children, Adults & Housing",Childrens Services,Prevention & Intervention,Legal Costs - Children'S Social Care,LEGAL FEES
http://statistics.data.gov.uk/doc/local-authority-district/00AR,London Borough of Havering,11/04/2015,128.52,APR15L488,ELA Group,oneSource Non-Shared LBH,Asset Management,Technical Services,SS External Contractors,PRIVATE CONTRACTORS PAYMENT - OTHER
http://statistics.data.gov.uk/doc/local-authority-district/00AR,London Borough of Havering,11/04/2015,142.54,APR15L489,ELA Group,Community and Resources,Streetcare,Parking Facilities,M Storey Car Pk Dir Costs,RESPONSIVE REPAIRS - BUILDING
http://statistics.data.gov.uk/doc/local-authority-district/00AR,London Borough of Havering,11/04/2015,783.97,APR15L490,ELA Group,oneSource Non-Shared LBH,Asset Management,Premises Management,Corporate Landlord-LBH,CYCLICAL/PLANNED MAINTENANCE - BUILDING
http://statistics.data.gov.uk/doc/local-authority-district/00AR,London Borough of Havering,11/04/2015,3177.88,APR15L491,ELA Group,"Children, Adults & Housing",Housing (HRA),Maintenance,Responsive Repairs (HRA),RESPONSIVE REPAIRS - MECHANICAL AND ELECTRICAL
http://statistics.data.gov.uk/doc/local-authority-district/00AR,London Borough of Havering,10/04/2015,128.52,APR15L492,ELA Group,oneSource Non-Shared LBH,Asset Management,Technical Services,SS External Contractors,PRIVATE CONTRACTORS PAYMENT - OTHER
http://statistics.data.gov.uk/doc/local-authority-district/00AR,London Borough of Havering,10/04/2015,142.54,APR15L493,ELA Group,Community and Resources,Streetcare,Parking Facilities,M Storey Car Pk Dir Costs,RESPONSIVE REPAIRS - BUILDING
http://statistics.data.gov.uk/doc/local-authority-district/00AR,London Borough of Havering,10/04/2015,783.97,APR15L494,ELA Group,oneSource Non-Shared LBH,Asset Management,Premises Management,Corporate Landlord-LBH,CYCLICAL/PLANNED MAINTENANCE - BUILDING
http://statistics.data.gov.uk/doc/local-authority-district/00AR,London Borough of Havering,10/04/2015,3177.88,APR15L495,ELA Group,"Children, Adults & Housing",Housing (HRA),Maintenance,Responsive Repairs (HRA),RESPONSIVE REPAIRS - MECHANICAL AND ELECTRICAL
http://statistics.data.gov.uk/doc/local-authority-district/00AR,London Borough of Havering,17/04/2015,570.24,APR15L496,ELA Group,oneSource Non-Shared LBH,Asset Management,Technical Services,SS External Contractors,PRIVATE CONTRACTORS PAYMENT - OTHER
http://statistics.data.gov.uk/doc/local-authority-district/00AR,London Borough of Havering,17/04/2015,14995.00,APR15L497,The Pupil Parent Partnership Ltd,"Children, Adults & Housing",Learning & Achievement,SEN,Residential School Budget,PRIVATE CONTRACTORS PAYMENT - OTHER
http://statistics.data.gov.uk/doc/local-authority-district/00AR,London Borough of Havering,16/04/2015,2000.00,APR15L498,Hall Mead School Academy,"Children, Adults & Housing",Learning & Achievement,Alternative Provision including LAC education,Social Inclusion,CLIENT SUPPORT - THIRD PARTY
http://statistics.data.gov.uk/doc/local-authority-district/00AR,London Borough of Havering,08/04/2015,17940.00,APR15L499,Hall Mead School Academy,"Children, Adults & Housing",Learning & Achievement,SEN,Primary Support,GENERAL CONTINGENCY
http://statistics.data.gov.uk/doc/local-authority-district/00AR,London Borough of Havering,08/04/2015,2385.00,APR15L500,St Edwards Church of England School & Sixth Form College,"Children, Adults & Housing",Learning & Achievement,SEN,Primary Support,GENERAL CONTINGENCY
http://statistics.data.gov.uk/doc/local-authority-district/00AR,London Borough of Havering,23/04/2015,2972.50,APR15L501,Savills (UK) Ltd,Community and Resources,Streetcare,Borough Roads,Bor Rds Highways General,PRIVATE CONTRACTORS PAYMENT - OTHER
http://statistics.data.gov.uk/doc/local-authority-district/00AR,London Borough of Havering,02/04/2015,56900.00,APR15L502,Savills (UK) Limited,Community and Resources,Economic Development,Housing Development Company,Housing Dev Company (Econ Dev),CONSULTANCY FEES
http://statistics.data.gov.uk/doc/local-authority-district/00AR,London Borough of Havering,30/04/2015,840.00,APR15L503,"Dr Ansari, Dr Imran, Dr Oladimeji t/a J Hamilton-Smith & Partners",Public Health,Public Health,PH - NHS Health Check Programme,NHS Health Checks - Mandatory,PRIVATE CONTRACTORS PAYMENT - OTHER
http://statistics.data.gov.uk/doc/local-authority-district/00AR,London Borough of Havering,16/04/2015,10168.00,APR15L504,Reed Business Information Ltd (Head Office),"Children, Adults & Housing",Childrens Services,Prevention & Intervention,Social Work Improvement Team,STAFF DEVELOPMENT AND TRAINING
http://statistics.data.gov.uk/doc/local-authority-district/00AR,London Borough of Havering,30/04/2015,670.00,APR15L505,Drs P & S Poologanathan,Public Health,Public Health,PH - NHS Health Check Programme,NHS Health Checks - Mandatory,PRIVATE CONTRACTORS PAYMENT - OTHER
http://statistics.data.gov.uk/doc/local-authority-district/00AR,London Borough of Havering,07/04/2015,3458.77,APR15L506,Apetito Ltd,"Children, Adults & Housing",Learning & Achievement,Borough Catering,Catering - Meals on Wheels,VEHICLE LEASES
http://statistics.data.gov.uk/doc/local-authority-district/00AR,London Borough of Havering,16/04/2015,3458.77,APR15L507,Apetito Ltd,"Children, Adults & Housing",Learning & Achievement,Borough Catering,Catering - Meals on Wheels,VEHICLE LEASES
http://statistics.data.gov.uk/doc/local-authority-district/00AR,London Borough of Havering,08/04/2015,21364.00,APR15L510,Havering College of Further & Higher Education,"Children, Adults & Housing",Learning & Achievement,SEN,Post-16 High Needs Top- up DSG,GENERAL CONTINGENCY
http://statistics.data.gov.uk/doc/local-authority-district/00AR,London Borough of Havering,02/04/2015,4560.15,APR15L517,IHS (Global) Ltd,oneSource Shared,oS Asset Management Services,oS Technical Services,Architectural Service,STAFF DEVELOPMENT AND TRAINING
http://statistics.data.gov.uk/doc/local-authority-district/00AR,London Borough of Havering,16/04/2015,5050.00,APR15L522,Pitney Bowes Ltd t/as Pitney Bowes Purchase Power,oneSource Shared,oS Asset Management Services,oS Health & Safety,Corp.Support Svs Section,INTERNAL RECHARGES
http://statistics.data.gov.uk/doc/local-authority-district/00AR,London Borough of Havering,08/04/2015,1053.00,APR15L525,Langtons Junior Academy,"Children, Adults & Housing",Learning & Achievement,SEN,Primary Support,GENERAL CONTINGENCY
http://statistics.data.gov.uk/doc/local-authority-district/00AR,London Borough of Havering,15/04/2015,2438.52,APR15L526,District Surveyors Association Ltd,Community and Resources,Regulatory Services,Development Control Svs,Building Control,MEMBERSHIP AND SUBSCRIPTIONS
http://statistics.data.gov.uk/doc/local-authority-district/00AR,London Borough of Havering,11/04/2015,4301.60,APR15L527,Kent County Council,"Children, Adults & Housing",Learning & Achievement,SEN,Post 16 Support,PRIVATE CONTRACTORS PAYMENT - OTHER
http://statistics.data.gov.uk/doc/local-authority-district/00AR,London Borough of Havering,02/04/2015,6000.00,APR15L528,Lambert Smith Hampton Group Ltd,Community and Resources,Economic Development,Economic Regeneration,Economic Development Implementation,PRIVATE CONTRACTORS PAYMENT - OTHER
http://statistics.data.gov.uk/doc/local-authority-district/00AR,London Borough of Havering,02/04/2015,764.13,APR15L529,Misco,oneSource Shared,oS Legal & Governance,oS Democratic & Electoral Services,Electoral Registration,PRIVATE CONTRACTORS PAYMENT - OTHER
http://statistics.data.gov.uk/doc/local-authority-district/00AR,London Borough of Havering,02/04/2015,3827.95,APR15L530,Misco,oneSource Shared,oS ICT Services,oS Commercial Services,Educational Computer Centre,PRIVATE CONTRACTORS PAYMENT - OTHER
http://statistics.data.gov.uk/doc/local-authority-district/00AR,London Borough of Havering,21/04/2015,5226.00,APR15L531,Misco,oneSource Shared,oS Legal & Governance,oS Democratic & Electoral Services,Electoral Registration,ICT HARDWARE
http://statistics.data.gov.uk/doc/local-authority-district/00AR,London Borough of Havering,21/04/2015,3775.00,APR15L532,Misco,oneSource Shared,oS Legal & Governance,oS Democratic & Electoral Services,Electoral Registration,ICT SOFTWARE
http://statistics.data.gov.uk/doc/local-authority-district/00AR,London Borough of Havering,01/04/2015,1747.75,APR15L543,Hanson Aggregates,Community and Resources,Streetcare,Highways Cost Recovery Account,Highways Cost Recovery Account,PRIVATE CONTRACTORS PAYMENT - OTHER
http://statistics.data.gov.uk/doc/local-authority-district/00AR,London Borough of Havering,01/04/2015,855.86,APR15L544,Hanson Aggregates,Community and Resources,Streetcare,Highways Cost Recovery Account,Highways Cost Recovery Account,PRIVATE CONTRACTORS PAYMENT - OTHER
http://statistics.data.gov.uk/doc/local-authority-district/00AR,London Borough of Havering,09/04/2015,798.80,APR15L545,Hanson Aggregates,Community and Resources,Streetcare,Highways Cost Recovery Account,Highways Cost Recovery Account,PRIVATE CONTRACTORS PAYMENT - OTHER
http://statistics.data.gov.uk/doc/local-authority-district/00AR,London Borough of Havering,09/04/2015,834.84,APR15L546,Hanson Aggregates,Community and Resources,Streetcare,Highways Cost Recovery Account,Highways Cost Recovery Account,PRIVATE CONTRACTORS PAYMENT - OTHER
http://statistics.data.gov.uk/doc/local-authority-district/00AR,London Borough of Havering,09/04/2015,4209.40,APR15L549,Tynetec Ltd,"Children, Adults & Housing",Housing (HRA),Hsg Needs & Strategy,Havering Telecare Centre,"PURCHASE - EQUIPMENT, FURNITURE AND MATERIALS"
http://statistics.data.gov.uk/doc/local-authority-district/00AR,London Borough of Havering,28/04/2015,4325.00,APR15L550,Tynetec Ltd,"Children, Adults & Housing",Housing (HRA),Hsg Needs & Strategy,Havering Telecare Centre,"PURCHASE - EQUIPMENT, FURNITURE AND MATERIALS"
http://statistics.data.gov.uk/doc/local-authority-district/00AR,London Borough of Havering,27/04/2015,1200.00,APR15L551,Islington Council,Public Health,Public Health,PH - Misc. Public Health Services,Miscellaneous / Other PH Contracts,PRIVATE CONTRACTORS PAYMENT - OTHER
http://statistics.data.gov.uk/doc/local-authority-district/00AR,London Borough of Havering,15/04/2015,950.00,APR15L552,Electrol,oneSource Shared,oS Asset Management Services,oS Technical Services,Architectural Service,STAFF DEVELOPMENT AND TRAINING
http://statistics.data.gov.uk/doc/local-authority-district/00AR,London Borough of Havering,20/04/2015,116918.43,APR15L553,EDF Energy Customers Plc,Community and Resources,Streetcare,Street Lighting,Street Lighting,ELECTRICITY
http://statistics.data.gov.uk/doc/local-authority-district/00AR,London Borough of Havering,27/04/2015,6457.98,APR15L554,EDF Energy Customers Plc,Community and Resources,Culture & Leisure,Indoor Sports & Recreation,Chafford Sports Complex,ELECTRICITY
http://statistics.data.gov.uk/doc/local-authority-district/00AR,London Borough of Havering,08/04/2015,739.80,APR15L555,NPS London Ltd,Community and Resources,Culture & Leisure,Indoor Sports & Recreation,Romford Leisure Development,PRIVATE CONTRACTORS PAYMENT - OTHER
http://statistics.data.gov.uk/doc/local-authority-district/00AR,London Borough of Havering,02/04/2015,1951.80,APR15L556,Bupa Care Homes - Hutton Village_a,"Children, Adults & Housing",Adult Services,Adult Community Team,Physical Support,NURSING HOMES - PRIVATE CONTRACTORS PAYMENT
http://statistics.data.gov.uk/doc/local-authority-district/00AR,London Borough of Havering,30/04/2015,824.94,APR15L557,Morepower Ltd t/a Aqs Homecare_a,"Children, Adults & Housing",Adult Services,Adult Community Team,Physical Support,HOME CARE - PRIVATE CONTRACTORS PAYMENT
http://statistics.data.gov.uk/doc/local-authority-district/00AR,London Borough of Havering,30/04/2015,1003.22,APR15L558,Morepower Ltd t/a Aqs Homecare_a,"Children, Adults & Housing",Adult Services,Adult Community Team,Physical Support,HOME CARE - PRIVATE CONTRACTORS PAYMENT
http://statistics.data.gov.uk/doc/local-authority-district/00AR,London Borough of Havering,30/04/2015,616.53,APR15L559,Morepower Ltd t/a Aqs Homecare_a,"Children, Adults & Housing",Adult Services,Adult Community Team,Physical Support,HOME CARE - PRIVATE CONTRACTORS PAYMENT
http://statistics.data.gov.uk/doc/local-authority-district/00AR,London Borough of Havering,30/04/2015,611.03,APR15L560,Morepower Ltd t/a Aqs Homecare_a,"Children, Adults & Housing",Adult Services,Adult Community Team,Physical Support,HOME CARE - PRIVATE CONTRACTORS PAYMENT
http://statistics.data.gov.uk/doc/local-authority-district/00AR,London Borough of Havering,30/04/2015,932.76,APR15L561,Morepower Ltd t/a Aqs Homecare_a,"Children, Adults & Housing",Adult Services,Adult Community Team,Physical Support,HOME CARE - PRIVATE CONTRACTORS PAYMENT
http://statistics.data.gov.uk/doc/local-authority-district/00AR,London Borough of Havering,30/04/2015,669.82,APR15L562,Morepower Ltd t/a Aqs Homecare_a,"Children, Adults & Housing",Adult Services,Adult Community Team,Physical Support,HOME CARE - PRIVATE CONTRACTORS PAYMENT
http://statistics.data.gov.uk/doc/local-authority-district/00AR,London Borough of Havering,30/04/2015,526.64,APR15L563,Morepower Ltd t/a Aqs Homecare_a,"Children, Adults & Housing",Adult Services,Adult Community Team,Physical Support,HOME CARE - PRIVATE CONTRACTORS PAYMENT
http://statistics.data.gov.uk/doc/local-authority-district/00AR,London Borough of Havering,30/04/2015,827.93,APR15L564,Morepower Ltd t/a Aqs Homecare_a,"Children, Adults & Housing",Adult Services,Adult Community Team,Physical Support,HOME CARE - PRIVATE CONTRACTORS PAYMENT
http://statistics.data.gov.uk/doc/local-authority-district/00AR,London Borough of Havering,30/04/2015,1104.07,APR15L565,Morepower Ltd t/a Aqs Homecare_a,"Children, Adults & Housing",Adult Services,Adult Community Team,Physical Support,HOME CARE - PRIVATE CONTRACTORS PAYMENT
http://statistics.data.gov.uk/doc/local-authority-district/00AR,London Borough of Havering,30/04/2015,562.25,APR15L566,Morepower Ltd t/a Aqs Homecare_a,"Children, Adults & Housing",Adult Services,Adult Community Team,Physical Support,HOME CARE - PRIVATE CONTRACTORS PAYMENT
http://statistics.data.gov.uk/doc/local-authority-district/00AR,London Borough of Havering,30/04/2015,563.64,APR15L567,Morepower Ltd t/a Aqs Homecare_a,"Children, Adults & Housing",Adult Services,Adult Community Team,Physical Support,HOME CARE - PRIVATE CONTRACTORS PAYMENT
http://statistics.data.gov.uk/doc/local-authority-district/00AR,London Borough of Havering,30/04/2015,1217.86,APR15L568,Morepower Ltd t/a Aqs Homecare_a,"Children, Adults & Housing",Adult Services,Adult Community Team,Physical Support,HOME CARE - PRIVATE CONTRACTORS PAYMENT
http://statistics.data.gov.uk/doc/local-authority-district/00AR,London Borough of Havering,30/04/2015,1740.51,APR15L569,Morepower Ltd t/a Aqs Homecare_a,"Children, Adults & Housing",Adult Services,Adult Community Team,Physical Support,HOME CARE - PRIVATE CONTRACTORS PAYMENT
http://statistics.data.gov.uk/doc/local-authority-district/00AR,London Borough of Havering,30/04/2015,558.76,APR15L570,Morepower Ltd t/a Aqs Homecare_a,"Children, Adults & Housing",Adult Services,Adult Community Team,Physical Support,HOME CARE - PRIVATE CONTRACTORS PAYMENT
http://statistics.data.gov.uk/doc/local-authority-district/00AR,London Borough of Havering,30/04/2015,1893.15,APR15L571,Morepower Ltd t/a Aqs Homecare_a,"Children, Adults & Housing",Adult Services,Adult Community Team,Physical Support,HOME CARE - PRIVATE CONTRACTORS PAYMENT
http://statistics.data.gov.uk/doc/local-authority-district/00AR,London Borough of Havering,30/04/2015,576.60,APR15L572,Morepower Ltd t/a Aqs Homecare_a,"Children, Adults & Housing",Adult Services,Adult Community Team,Physical Support,HOME CARE - PRIVATE CONTRACTORS PAYMENT
http://statistics.data.gov.uk/doc/local-authority-district/00AR,London Borough of Havering,30/04/2015,2390.40,APR15L573,Morepower Ltd t/a Aqs Homecare_a,"Children, Adults & Housing",Adult Services,Adult Community Team,Physical Support,HOME CARE - PRIVATE CONTRACTORS PAYMENT
http://statistics.data.gov.uk/doc/local-authority-district/00AR,London Borough of Havering,30/04/2015,899.14,APR15L574,Morepower Ltd t/a Aqs Homecare_a,"Children, Adults & Housing",Adult Services,Adult Community Team,Physical Support,HOME CARE - PRIVATE CONTRACTORS PAYMENT
http://statistics.data.gov.uk/doc/local-authority-district/00AR,London Borough of Havering,30/04/2015,825.19,APR15L575,Morepower Ltd t/a Aqs Homecare_a,"Children, Adults & Housing",Adult Services,Adult Community Team,Support with Memory & Cognition,HOME CARE - PRIVATE CONTRACTORS PAYMENT
http://statistics.data.gov.uk/doc/local-authority-district/00AR,London Borough of Havering,30/04/2015,589.78,APR15L576,Morepower Ltd t/a Aqs Homecare_a,"Children, Adults & Housing",Adult Services,Adult Community Team,Physical Support,HOME CARE - PRIVATE CONTRACTORS PAYMENT
http://statistics.data.gov.uk/doc/local-authority-district/00AR,London Borough of Havering,30/04/2015,953.42,APR15L577,Morepower Ltd t/a Aqs Homecare_a,"Children, Adults & Housing",Adult Services,Adult Community Team,Physical Support,HOME CARE - PRIVATE CONTRACTORS PAYMENT
http://statistics.data.gov.uk/doc/local-authority-district/00AR,London Borough of Havering,30/04/2015,870.02,APR15L578,Morepower Ltd t/a Aqs Homecare_a,"Children, Adults & Housing",Adult Services,Adult Community Team,Physical Support,HOME CARE - PRIVATE CONTRACTORS PAYMENT
http://statistics.data.gov.uk/doc/local-authority-district/00AR,London Borough of Havering,30/04/2015,643.42,APR15L579,Morepower Ltd t/a Aqs Homecare_a,"Children, Adults & Housing",Adult Services,Adult Community Team,Physical Support,HOME CARE - PRIVATE CONTRACTORS PAYMENT
http://statistics.data.gov.uk/doc/local-authority-district/00AR,London Borough of Havering,30/04/2015,804.77,APR15L580,Morepower Ltd t/a Aqs Homecare_a,"Children, Adults & Housing",Adult Services,Adult Community Team,Physical Support,HOME CARE - PRIVATE CONTRACTORS PAYMENT
http://statistics.data.gov.uk/doc/local-authority-district/00AR,London Borough of Havering,30/04/2015,517.93,APR15L581,Morepower Ltd t/a Aqs Homecare_a,"Children, Adults & Housing",Adult Services,Adult Community Team,Physical Support,HOME CARE - PRIVATE CONTRACTORS PAYMENT
http://statistics.data.gov.uk/doc/local-authority-district/00AR,London Borough of Havering,30/04/2015,641.43,APR15L582,Morepower Ltd t/a Aqs Homecare_a,"Children, Adults & Housing",Adult Services,Adult Community Team,Physical Support,HOME CARE - PRIVATE CONTRACTORS PAYMENT
http://statistics.data.gov.uk/doc/local-authority-district/00AR,London Borough of Havering,30/04/2015,1500.72,APR15L583,Morepower Ltd t/a Aqs Homecare_a,"Children, Adults & Housing",Adult Services,Adult Community Team,Physical Support,HOME CARE - PRIVATE CONTRACTORS PAYMENT
http://statistics.data.gov.uk/doc/local-authority-district/00AR,London Borough of Havering,30/04/2015,573.20,APR15L584,Morepower Ltd t/a Aqs Homecare_a,"Children, Adults & Housing",Adult Services,Adult Community Team,Physical Support,HOME CARE - PRIVATE CONTRACTORS PAYMENT
http://statistics.data.gov.uk/doc/local-authority-district/00AR,London Borough of Havering,30/04/2015,778.88,APR15L585,Morepower Ltd t/a Aqs Homecare_a,"Children, Adults & Housing",Adult Services,Adult Community Team,Physical Support,HOME CARE - PRIVATE CONTRACTORS PAYMENT
http://statistics.data.gov.uk/doc/local-authority-district/00AR,London Borough of Havering,30/04/2015,1038.34,APR15L586,Morepower Ltd t/a Aqs Homecare_a,"Children, Adults & Housing",Adult Services,Adult Community Team,Physical Support,HOME CARE - PRIVATE CONTRACTORS PAYMENT
http://statistics.data.gov.uk/doc/local-authority-district/00AR,London Borough of Havering,30/04/2015,1131.22,APR15L587,Morepower Ltd t/a Aqs Homecare_a,"Children, Adults & Housing",Adult Services,Adult Community Team,Physical Support,HOME CARE - PRIVATE CONTRACTORS PAYMENT
http://statistics.data.gov.uk/doc/local-authority-district/00AR,London Borough of Havering,30/04/2015,630.12,APR15L588,Morepower Ltd t/a Aqs Homecare_a,"Children, Adults & Housing",Adult Services,Adult Community Team,Physical Support,HOME CARE - PRIVATE CONTRACTORS PAYMENT
http://statistics.data.gov.uk/doc/local-authority-district/00AR,London Borough of Havering,30/04/2015,1915.71,APR15L589,Morepower Ltd t/a Aqs Homecare_a,"Children, Adults & Housing",Adult Services,Adult Community Team,Physical Support,HOME CARE - PRIVATE CONTRACTORS PAYMENT
http://statistics.data.gov.uk/doc/local-authority-district/00AR,London Borough of Havering,30/04/2015,576.19,APR15L590,Morepower Ltd t/a Aqs Homecare_a,"Children, Adults & Housing",Adult Services,Adult Community Team,Physical Support,HOME CARE - PRIVATE CONTRACTORS PAYMENT
http://statistics.data.gov.uk/doc/local-authority-district/00AR,London Borough of Havering,30/04/2015,633.47,APR15L591,Morepower Ltd t/a Aqs Homecare_a,"Children, Adults & Housing",Adult Services,Adult Community Team,Physical Support,HOME CARE - PRIVATE CONTRACTORS PAYMENT
http://statistics.data.gov.uk/doc/local-authority-district/00AR,London Borough of Havering,07/04/2015,1343.86,APR15L592,Morepower Ltd t/a Aqs Homecare_a,"Children, Adults & Housing",Adult Services,Adult Community Team,Physical Support,HOME CARE - PRIVATE CONTRACTORS PAYMENT
http://statistics.data.gov.uk/doc/local-authority-district/00AR,London Borough of Havering,07/04/2015,537.59,APR15L593,Morepower Ltd t/a Aqs Homecare_a,"Children, Adults & Housing",Adult Services,Adult Community Team,Physical Support,HOME CARE - PRIVATE CONTRACTORS PAYMENT
http://statistics.data.gov.uk/doc/local-authority-district/00AR,London Borough of Havering,07/04/2015,589.33,APR15L594,Morepower Ltd t/a Aqs Homecare_a,"Children, Adults & Housing",Adult Services,Adult Community Team,Physical Support,HOME CARE - PRIVATE CONTRACTORS PAYMENT
http://statistics.data.gov.uk/doc/local-authority-district/00AR,London Borough of Havering,07/04/2015,1107.06,APR15L595,Morepower Ltd t/a Aqs Homecare_a,"Children, Adults & Housing",Adult Services,Adult Community Team,Physical Support,HOME CARE - PRIVATE CONTRACTORS PAYMENT
http://statistics.data.gov.uk/doc/local-authority-district/00AR,London Borough of Havering,07/04/2015,970.11,APR15L596,Morepower Ltd t/a Aqs Homecare_a,"Children, Adults & Housing",Adult Services,Adult Community Team,Physical Support,HOME CARE - PRIVATE CONTRACTORS PAYMENT
http://statistics.data.gov.uk/doc/local-authority-district/00AR,London Borough of Havering,07/04/2015,1468.85,APR15L597,Morepower Ltd t/a Aqs Homecare_a,"Children, Adults & Housing",Adult Services,Adult Community Team,Physical Support,HOME CARE - PRIVATE CONTRACTORS PAYMENT
http://statistics.data.gov.uk/doc/local-authority-district/00AR,London Borough of Havering,07/04/2015,611.24,APR15L598,Morepower Ltd t/a Aqs Homecare_a,"Children, Adults & Housing",Adult Services,Adult Community Team,Physical Support,HOME CARE - PRIVATE CONTRACTORS PAYMENT
http://statistics.data.gov.uk/doc/local-authority-district/00AR,London Borough of Havering,07/04/2015,648.14,APR15L599,Morepower Ltd t/a Aqs Homecare_a,"Children, Adults & Housing",Adult Services,Adult Community Team,Physical Support,HOME CARE - PRIVATE CONTRACTORS PAYMENT
http://statistics.data.gov.uk/doc/local-authority-district/00AR,London Borough of Havering,07/04/2015,653.11,APR15L600,Morepower Ltd t/a Aqs Homecare_a,"Children, Adults & Housing",Adult Services,Adult Community Team,Physical Support,HOME CARE - PRIVATE CONTRACTORS PAYMENT
http://statistics.data.gov.uk/doc/local-authority-district/00AR,London Borough of Havering,07/04/2015,634.46,APR15L601,Morepower Ltd t/a Aqs Homecare_a,"Children, Adults & Housing",Adult Services,Adult Community Team,Physical Support,HOME CARE - PRIVATE CONTRACTORS PAYMENT
http://statistics.data.gov.uk/doc/local-authority-district/00AR,London Borough of Havering,07/04/2015,612.79,APR15L602,Morepower Ltd t/a Aqs Homecare_a,"Children, Adults & Housing",Adult Services,Adult Community Team,Physical Support,HOME CARE - PRIVATE CONTRACTORS PAYMENT
http://statistics.data.gov.uk/doc/local-authority-district/00AR,London Borough of Havering,07/04/2015,1287.70,APR15L603,Morepower Ltd t/a Aqs Homecare_a,"Children, Adults & Housing",Adult Services,Adult Community Team,Physical Support,HOME CARE - PRIVATE CONTRACTORS PAYMENT
http://statistics.data.gov.uk/doc/local-authority-district/00AR,London Borough of Havering,07/04/2015,2390.40,APR15L604,Morepower Ltd t/a Aqs Homecare_a,"Children, Adults & Housing",Adult Services,Adult Community Team,Physical Support,HOME CARE - PRIVATE CONTRACTORS PAYMENT
http://statistics.data.gov.uk/doc/local-authority-district/00AR,London Borough of Havering,07/04/2015,909.10,APR15L605,Morepower Ltd t/a Aqs Homecare_a,"Children, Adults & Housing",Adult Services,Adult Community Team,Physical Support,HOME CARE - PRIVATE CONTRACTORS PAYMENT
http://statistics.data.gov.uk/doc/local-authority-district/00AR,London Borough of Havering,07/04/2015,635.20,APR15L606,Morepower Ltd t/a Aqs Homecare_a,"Children, Adults & Housing",Adult Services,Adult Community Team,Physical Support,HOME CARE - PRIVATE CONTRACTORS PAYMENT
http://statistics.data.gov.uk/doc/local-authority-district/00AR,London Borough of Havering,07/04/2015,528.87,APR15L607,Morepower Ltd t/a Aqs Homecare_a,"Children, Adults & Housing",Adult Services,Adult Community Team,Physical Support,HOME CARE - PRIVATE CONTRACTORS PAYMENT
http://statistics.data.gov.uk/doc/local-authority-district/00AR,London Borough of Havering,07/04/2015,819.42,APR15L608,Morepower Ltd t/a Aqs Homecare_a,"Children, Adults & Housing",Adult Services,Adult Community Team,Physical Support,HOME CARE - PRIVATE CONTRACTORS PAYMENT
http://statistics.data.gov.uk/doc/local-authority-district/00AR,London Borough of Havering,07/04/2015,691.72,APR15L609,Morepower Ltd t/a Aqs Homecare_a,"Children, Adults & Housing",Adult Services,Adult Community Team,Physical Support,HOME CARE - PRIVATE CONTRACTORS PAYMENT
http://statistics.data.gov.uk/doc/local-authority-district/00AR,London Borough of Havering,07/04/2015,582.68,APR15L610,Morepower Ltd t/a Aqs Homecare_a,"Children, Adults & Housing",Adult Services,Adult Community Team,Physical Support,HOME CARE - PRIVATE CONTRACTORS PAYMENT
http://statistics.data.gov.uk/doc/local-authority-district/00AR,London Borough of Havering,07/04/2015,680.77,APR15L611,Morepower Ltd t/a Aqs Homecare_a,"Children, Adults & Housing",Adult Services,Adult Community Team,Physical Support,HOME CARE - PRIVATE CONTRACTORS PAYMENT
http://statistics.data.gov.uk/doc/local-authority-district/00AR,London Borough of Havering,07/04/2015,635.71,APR15L612,Morepower Ltd t/a Aqs Homecare_a,"Children, Adults & Housing",Adult Services,Adult Community Team,Physical Support,HOME CARE - PRIVATE CONTRACTORS PAYMENT
http://statistics.data.gov.uk/doc/local-authority-district/00AR,London Borough of Havering,07/04/2015,593.86,APR15L613,Morepower Ltd t/a Aqs Homecare_a,"Children, Adults & Housing",Adult Services,Adult Community Team,Physical Support,HOME CARE - PRIVATE CONTRACTORS PAYMENT
http://statistics.data.gov.uk/doc/local-authority-district/00AR,London Borough of Havering,07/04/2015,941.22,APR15L614,Morepower Ltd t/a Aqs Homecare_a,"Children, Adults & Housing",Adult Services,Adult Community Team,Physical Support,HOME CARE - PRIVATE CONTRACTORS PAYMENT
http://statistics.data.gov.uk/doc/local-authority-district/00AR,London Borough of Havering,07/04/2015,503.47,APR15L615,Morepower Ltd t/a Aqs Homecare_a,"Children, Adults & Housing",Adult Services,Adult Community Team,Physical Support,HOME CARE - PRIVATE CONTRACTORS PAYMENT
http://statistics.data.gov.uk/doc/local-authority-district/00AR,London Borough of Havering,07/04/2015,688.00,APR15L616,Morepower Ltd t/a Aqs Homecare_a,"Children, Adults & Housing",Adult Services,Adult Community Team,Physical Support,HOME CARE - PRIVATE CONTRACTORS PAYMENT
http://statistics.data.gov.uk/doc/local-authority-district/00AR,London Borough of Havering,07/04/2015,624.25,APR15L617,Morepower Ltd t/a Aqs Homecare_a,"Children, Adults & Housing",Adult Services,Adult Community Team,Physical Support,HOME CARE - PRIVATE CONTRACTORS PAYMENT
http://statistics.data.gov.uk/doc/local-authority-district/00AR,London Borough of Havering,07/04/2015,548.31,APR15L618,Morepower Ltd t/a Aqs Homecare_a,"Children, Adults & Housing",Adult Services,Adult Community Team,Physical Support,HOME CARE - PRIVATE CONTRACTORS PAYMENT
http://statistics.data.gov.uk/doc/local-authority-district/00AR,London Borough of Havering,07/04/2015,1210.92,APR15L619,Morepower Ltd t/a Aqs Homecare_a,"Children, Adults & Housing",Adult Services,Adult Community Team,Physical Support,HOME CARE - PRIVATE CONTRACTORS PAYMENT
http://statistics.data.gov.uk/doc/local-authority-district/00AR,London Borough of Havering,07/04/2015,1590.61,APR15L620,Morepower Ltd t/a Aqs Homecare_a,"Children, Adults & Housing",Adult Services,Adult Community Team,Physical Support,HOME CARE - PRIVATE CONTRACTORS PAYMENT
http://statistics.data.gov.uk/doc/local-authority-district/00AR,London Borough of Havering,07/04/2015,531.29,APR15L621,Morepower Ltd t/a Aqs Homecare_a,"Children, Adults & Housing",Adult Services,Adult Community Team,Physical Support,HOME CARE - PRIVATE CONTRACTORS PAYMENT
http://statistics.data.gov.uk/doc/local-authority-district/00AR,London Borough of Havering,07/04/2015,638.91,APR15L622,Morepower Ltd t/a Aqs Homecare_a,"Children, Adults & Housing",Adult Services,Adult Community Team,Physical Support,HOME CARE - PRIVATE CONTRACTORS PAYMENT
http://statistics.data.gov.uk/doc/local-authority-district/00AR,London Borough of Havering,07/04/2015,837.65,APR15L623,Morepower Ltd t/a Aqs Homecare_a,"Children, Adults & Housing",Adult Services,Adult Community Team,Physical Support,HOME CARE - PRIVATE CONTRACTORS PAYMENT
http://statistics.data.gov.uk/doc/local-authority-district/00AR,London Borough of Havering,07/04/2015,1883.63,APR15L624,Morepower Ltd t/a Aqs Homecare_a,"Children, Adults & Housing",Adult Services,Adult Community Team,Physical Support,HOME CARE - PRIVATE CONTRACTORS PAYMENT
http://statistics.data.gov.uk/doc/local-authority-district/00AR,London Borough of Havering,07/04/2015,677.03,APR15L625,Morepower Ltd t/a Aqs Homecare_a,"Children, Adults & Housing",Adult Services,Adult Community Team,Physical Support,HOME CARE - PRIVATE CONTRACTORS PAYMENT
http://statistics.data.gov.uk/doc/local-authority-district/00AR,London Borough of Havering,07/04/2015,757.71,APR15L626,Morepower Ltd t/a Aqs Homecare_a,"Children, Adults & Housing",Adult Services,Adult Community Team,Physical Support,HOME CARE - PRIVATE CONTRACTORS PAYMENT
http://statistics.data.gov.uk/doc/local-authority-district/00AR,London Borough of Havering,07/04/2015,1922.28,APR15L627,Morepower Ltd t/a Aqs Homecare_a,"Children, Adults & Housing",Adult Services,Adult Community Team,Physical Support,HOME CARE - PRIVATE CONTRACTORS PAYMENT
http://statistics.data.gov.uk/doc/local-authority-district/00AR,London Borough of Havering,07/04/2015,850.34,APR15L628,Morepower Ltd t/a Aqs Homecare_a,"Children, Adults & Housing",Adult Services,Adult Community Team,Support with Memory & Cognition,HOME CARE - PRIVATE CONTRACTORS PAYMENT
http://statistics.data.gov.uk/doc/local-authority-district/00AR,London Borough of Havering,07/04/2015,596.62,APR15L629,Morepower Ltd t/a Aqs Homecare_a,"Children, Adults & Housing",Adult Services,Adult Community Team,Physical Support,HOME CARE - PRIVATE CONTRACTORS PAYMENT
http://statistics.data.gov.uk/doc/local-authority-district/00AR,London Borough of Havering,30/04/2015,1420.70,APR15L630,Morepower Ltd t/a Aqs Homecare_a,"Children, Adults & Housing",Adult Services,Adult Community Team,Physical Support,HOME CARE - PRIVATE CONTRACTORS PAYMENT
http://statistics.data.gov.uk/doc/local-authority-district/00AR,London Borough of Havering,02/04/2015,1849.04,APR15L631,Priory Supporting Care Ltd_a,"Children, Adults & Housing",Adult Services,Adult Community Team,Physical Support,RESIDENTIAL PLACEMENTS - PRIVATE CONTRACTORS PAYMENT
http://statistics.data.gov.uk/doc/local-authority-district/00AR,London Borough of Havering,02/04/2015,2139.04,APR15L632,Priory Supporting Care Ltd_a,"Children, Adults & Housing",Adult Services,Adult Community Team,Physical Support,RESIDENTIAL PLACEMENTS - PRIVATE CONTRACTORS PAYMENT
http://statistics.data.gov.uk/doc/local-authority-district/00AR,London Borough of Havering,02/04/2015,1849.04,APR15L633,Priory Supporting Care Ltd_a,"Children, Adults & Housing",Adult Services,Adult Community Team,Physical Support,RESIDENTIAL PLACEMENTS - PRIVATE CONTRACTORS PAYMENT
http://statistics.data.gov.uk/doc/local-authority-district/00AR,London Borough of Havering,02/04/2015,2139.04,APR15L634,Priory Supporting Care Ltd_a,"Children, Adults & Housing",Adult Services,Adult Community Team,Physical Support,RESIDENTIAL PLACEMENTS - PRIVATE CONTRACTORS PAYMENT
http://statistics.data.gov.uk/doc/local-authority-district/00AR,London Borough of Havering,02/04/2015,2139.04,APR15L635,Priory Supporting Care Ltd_a,"Children, Adults & Housing",Adult Services,Adult Community Team,Support with Memory & Cognition,RESIDENTIAL PLACEMENTS - PRIVATE CONTRACTORS PAYMENT
http://statistics.data.gov.uk/doc/local-authority-district/00AR,London Borough of Havering,02/04/2015,2139.04,APR15L636,Priory Supporting Care Ltd_a,"Children, Adults & Housing",Adult Services,Adult Community Team,Physical Support,RESIDENTIAL PLACEMENTS - PRIVATE CONTRACTORS PAYMENT
http://statistics.data.gov.uk/doc/local-authority-district/00AR,London Borough of Havering,02/04/2015,2139.04,APR15L637,Priory Supporting Care Ltd_a,"Children, Adults & Housing",Adult Services,Adult Community Team,Support with Memory & Cognition,RESIDENTIAL PLACEMENTS - PRIVATE CONTRACTORS PAYMENT
http://statistics.data.gov.uk/doc/local-authority-district/00AR,London Borough of Havering,02/04/2015,-414.99,APR15L638,Priory Supporting Care Ltd_a,"Children, Adults & Housing",Adult Services,Adult Community Team,Physical Support,RESIDENTIAL CARE INCOME
http://statistics.data.gov.uk/doc/local-authority-district/00AR,London Borough of Havering,02/04/2015,1518.85,APR15L639,Priory Supporting Care Ltd_a,"Children, Adults & Housing",Adult Services,Adult Community Team,Physical Support,RESIDENTIAL PLACEMENTS - PRIVATE CONTRACTORS PAYMENT
http://statistics.data.gov.uk/doc/local-authority-district/00AR,London Borough of Havering,02/04/2015,-414.99,APR15L640,Priory Supporting Care Ltd_a,"Children, Adults & Housing",Adult Services,Adult Community Team,Physical Support,RESIDENTIAL CARE INCOME
http://statistics.data.gov.uk/doc/local-authority-district/00AR,London Borough of Havering,02/04/2015,1757.07,APR15L641,Priory Supporting Care Ltd_a,"Children, Adults & Housing",Adult Services,Adult Community Team,Physical Support,RESIDENTIAL PLACEMENTS - PRIVATE CONTRACTORS PAYMENT
http://statistics.data.gov.uk/doc/local-authority-district/00AR,London Borough of Havering,02/04/2015,-823.47,APR15L642,Priory Supporting Care Ltd_a,"Children, Adults & Housing",Adult Services,Adult Community Team,Support with Memory & Cognition,RESIDENTIAL CARE INCOME
http://statistics.data.gov.uk/doc/local-authority-district/00AR,London Borough of Havering,02/04/2015,1757.07,APR15L643,Priory Supporting Care Ltd_a,"Children, Adults & Housing",Adult Services,Adult Community Team,Support with Memory & Cognition,RESIDENTIAL PLACEMENTS - PRIVATE CONTRACTORS PAYMENT
http://statistics.data.gov.uk/doc/local-authority-district/00AR,London Borough of Havering,02/04/2015,-438.31,APR15L644,Priory Supporting Care Ltd_a,"Children, Adults & Housing",Adult Services,Adult Community Team,Physical Support,RESIDENTIAL CARE INCOME
http://statistics.data.gov.uk/doc/local-authority-district/00AR,London Borough of Havering,02/04/2015,1757.07,APR15L645,Priory Supporting Care Ltd_a,"Children, Adults & Housing",Adult Services,Adult Community Team,Physical Support,RESIDENTIAL PLACEMENTS - PRIVATE CONTRACTORS PAYMENT
http://statistics.data.gov.uk/doc/local-authority-district/00AR,London Borough of Havering,02/04/2015,-414.99,APR15L646,Priory Supporting Care Ltd_a,"Children, Adults & Housing",Adult Services,Adult Community Team,Physical Support,RESIDENTIAL CARE INCOME
http://statistics.data.gov.uk/doc/local-authority-district/00AR,London Borough of Havering,02/04/2015,1757.07,APR15L647,Priory Supporting Care Ltd_a,"Children, Adults & Housing",Adult Services,Adult Community Team,Physical Support,RESIDENTIAL PLACEMENTS - PRIVATE CONTRACTORS PAYMENT
http://statistics.data.gov.uk/doc/local-authority-district/00AR,London Borough of Havering,02/04/2015,-414.99,APR15L648,Priory Supporting Care Ltd_a,"Children, Adults & Housing",Adult Services,Adult Community Team,Physical Support,RESIDENTIAL CARE INCOME
http://statistics.data.gov.uk/doc/local-authority-district/00AR,London Borough of Havering,02/04/2015,1518.85,APR15L649,Priory Supporting Care Ltd_a,"Children, Adults & Housing",Adult Services,Adult Community Team,Physical Support,RESIDENTIAL PLACEMENTS - PRIVATE CONTRACTORS PAYMENT
http://statistics.data.gov.uk/doc/local-authority-district/00AR,London Borough of Havering,02/04/2015,-785.45,APR15L650,Priory Supporting Care Ltd_a,"Children, Adults & Housing",Adult Services,Adult Community Team,Support with Memory & Cognition,RESIDENTIAL CARE INCOME
http://statistics.data.gov.uk/doc/local-authority-district/00AR,London Borough of Havering,02/04/2015,1757.07,APR15L651,Priory Supporting Care Ltd_a,"Children, Adults & Housing",Adult Services,Adult Community Team,Support with Memory & Cognition,RESIDENTIAL PLACEMENTS - PRIVATE CONTRACTORS PAYMENT
http://statistics.data.gov.uk/doc/local-authority-district/00AR,London Borough of Havering,02/04/2015,-408.41,APR15L652,Priory Supporting Care Ltd_a,"Children, Adults & Housing",Adult Services,Adult Community Team,Physical Support,RESIDENTIAL CARE INCOME
http://statistics.data.gov.uk/doc/local-authority-district/00AR,London Borough of Havering,02/04/2015,1518.85,APR15L653,Priory Supporting Care Ltd_a,"Children, Adults & Housing",Adult Services,Adult Community Team,Physical Support,RESIDENTIAL PLACEMENTS - PRIVATE CONTRACTORS PAYMENT
http://statistics.data.gov.uk/doc/local-authority-district/00AR,London Borough of Havering,02/04/2015,1497.91,APR15L654,Priory Supporting Care Ltd_a,"Children, Adults & Housing",Adult Services,Adult Community Team,Support with Memory & Cognition,RESIDENTIAL PLACEMENTS - PRIVATE CONTRACTORS PAYMENT
http://statistics.data.gov.uk/doc/local-authority-district/00AR,London Borough of Havering,02/04/2015,2139.04,APR15L657,Ash Grove Residential Care Home_a,"Children, Adults & Housing",Adult Services,Adult Community Team,Support with Memory & Cognition,RESIDENTIAL PLACEMENTS - PRIVATE CONTRACTORS PAYMENT
http://statistics.data.gov.uk/doc/local-authority-district/00AR,London Borough of Havering,02/04/2015,1849.04,APR15L658,Ash Grove Residential Care Home_a,"Children, Adults & Housing",Adult Services,Adult Community Team,Physical Support,RESIDENTIAL PLACEMENTS - PRIVATE CONTRACTORS PAYMENT
http://statistics.data.gov.uk/doc/local-authority-district/00AR,London Borough of Havering,02/04/2015,2139.04,APR15L659,Ash Grove Residential Care Home_a,"Children, Adults & Housing",Adult Services,Adult Community Team,Physical Support,RESIDENTIAL PLACEMENTS - PRIVATE CONTRACTORS PAYMENT
http://statistics.data.gov.uk/doc/local-authority-district/00AR,London Borough of Havering,02/04/2015,2139.04,APR15L660,Ash Grove Residential Care Home_a,"Children, Adults & Housing",Adult Services,Adult Community Team,Physical Support,RESIDENTIAL PLACEMENTS - PRIVATE CONTRACTORS PAYMENT
http://statistics.data.gov.uk/doc/local-authority-district/00AR,London Borough of Havering,02/04/2015,1849.04,APR15L661,Ash Grove Residential Care Home_a,"Children, Adults & Housing",Adult Services,Adult Community Team,Physical Support,RESIDENTIAL PLACEMENTS - PRIVATE CONTRACTORS PAYMENT
http://statistics.data.gov.uk/doc/local-authority-district/00AR,London Borough of Havering,02/04/2015,-569.87,APR15L662,Ash Grove Residential Care Home_a,"Children, Adults & Housing",Adult Services,Adult Community Team,Support with Memory & Cognition,RESIDENTIAL CARE INCOME
http://statistics.data.gov.uk/doc/local-authority-district/00AR,London Borough of Havering,02/04/2015,1757.07,APR15L663,Ash Grove Residential Care Home_a,"Children, Adults & Housing",Adult Services,Adult Community Team,Support with Memory & Cognition,RESIDENTIAL PLACEMENTS - PRIVATE CONTRACTORS PAYMENT
http://statistics.data.gov.uk/doc/local-authority-district/00AR,London Borough of Havering,02/04/2015,-1273.23,APR15L664,Ash Grove Residential Care Home_a,"Children, Adults & Housing",Adult Services,Adult Community Team,Physical Support,RESIDENTIAL PLACEMENTS - PRIVATE CONTRACTORS PAYMENT
http://statistics.data.gov.uk/doc/local-authority-district/00AR,London Borough of Havering,02/04/2015,301.02,APR15L665,Ash Grove Residential Care Home_a,"Children, Adults & Housing",Adult Services,Adult Community Team,Physical Support,RESIDENTIAL CARE INCOME
http://statistics.data.gov.uk/doc/local-authority-district/00AR,London Borough of Havering,02/04/2015,-712.17,APR15L666,Ash Grove Residential Care Home_a,"Children, Adults & Housing",Adult Services,Adult Community Team,Physical Support,RESIDENTIAL PLACEMENTS - PRIVATE CONTRACTORS PAYMENT
http://statistics.data.gov.uk/doc/local-authority-district/00AR,London Borough of Havering,02/04/2015,194.78,APR15L667,Ash Grove Residential Care Home_a,"Children, Adults & Housing",Adult Services,Adult Community Team,Physical Support,RESIDENTIAL CARE INCOME
http://statistics.data.gov.uk/doc/local-authority-district/00AR,London Borough of Havering,02/04/2015,2266.00,APR15L668,Ash Grove Residential Care Home_a,"Children, Adults & Housing",Adult Services,Adult Community Team,Physical Support,RESIDENTIAL PLACEMENTS - PRIVATE CONTRACTORS PAYMENT
http://statistics.data.gov.uk/doc/local-authority-district/00AR,London Borough of Havering,02/04/2015,1812.72,APR15L669,Ash Grove Residential Care Home_a,"Children, Adults & Housing",Adult Services,Adult Community Team,Physical Support,RESPITE CARE - PRIVATE CONTRACTORS PAYMENT
http://statistics.data.gov.uk/doc/local-authority-district/00AR,London Borough of Havering,28/04/2015,9373.00,APR15L670,Carers Trust EHHR_a,"Children, Adults & Housing",Adult Services,Strategy and Commissioning,NHS Support for Social Care,PRIVATE CONTRACTORS PAYMENT - OTHER
http://statistics.data.gov.uk/doc/local-authority-district/00AR,London Borough of Havering,30/04/2015,568.14,APR15L671,Carers Trust EHHR_a,"Children, Adults & Housing",Adult Services,Adult Community Team,Physical Support,HOME CARE - PRIVATE CONTRACTORS PAYMENT
http://statistics.data.gov.uk/doc/local-authority-district/00AR,London Borough of Havering,30/04/2015,961.37,APR15L672,Carers Trust EHHR_a,"Children, Adults & Housing",Adult Services,Adult Community Team,Physical Support,HOME CARE - PRIVATE CONTRACTORS PAYMENT
http://statistics.data.gov.uk/doc/local-authority-district/00AR,London Borough of Havering,30/04/2015,955.92,APR15L673,Carers Trust EHHR_a,"Children, Adults & Housing",Adult Services,Adult Community Team,Physical Support,HOME CARE - PRIVATE CONTRACTORS PAYMENT
http://statistics.data.gov.uk/doc/local-authority-district/00AR,London Borough of Havering,30/04/2015,622.70,APR15L674,Carers Trust EHHR_a,"Children, Adults & Housing",Adult Services,Learning Disabilities,Learning Disability Support,HOME CARE - PRIVATE CONTRACTORS PAYMENT
http://statistics.data.gov.uk/doc/local-authority-district/00AR,London Borough of Havering,02/04/2015,2033.96,APR15L675,Bupa Care Homes - Ghyll Grove_a,"Children, Adults & Housing",Adult Services,Adult Community Team,Physical Support,NURSING HOMES - PRIVATE CONTRACTORS PAYMENT
http://statistics.data.gov.uk/doc/local-authority-district/00AR,London Borough of Havering,02/04/2015,2139.04,APR15L676,Bupa Care Homes - Ghyll Grove_a,"Children, Adults & Housing",Adult Services,Adult Community Team,Support with Memory & Cognition,RESIDENTIAL PLACEMENTS - PRIVATE CONTRACTORS PAYMENT
http://statistics.data.gov.uk/doc/local-authority-district/00AR,London Borough of Havering,02/04/2015,-461.54,APR15L677,Squirrels Nursing & Residential Home_a,"Children, Adults & Housing",Adult Services,Adult Community Team,Physical Support,RESIDENTIAL CARE INCOME
http://statistics.data.gov.uk/doc/local-authority-district/00AR,London Borough of Havering,02/04/2015,1757.07,APR15L678,Squirrels Nursing & Residential Home_a,"Children, Adults & Housing",Adult Services,Adult Community Team,Physical Support,RESIDENTIAL PLACEMENTS - PRIVATE CONTRACTORS PAYMENT
